Workbook

Sheet Forside
B2: Udgiver: | D2: Seges
D3: Husdyrinnovation og Planteinovation
B4: Ajourført | D4: 29. april 2021
B5: Forfatter: | D5: Torben Frandsen, Henrik Martinussen, Heidi Lund Hyttel og Irene Fisker
B7: Ansvar: | D7: Vilkår

Sheet Græssorter - økonomisk merværdi
A1: Rajgræssorters økonomiske merværdi på den enkelte kvægbedrift
A3: Forudsætninger
A4: Besætningsoplysninger
A5: Race | B5: Tung | D5: valgt niveau | F5: Grønne rækker og kolonner skjules
A6: Løsdrift (Ja / Nej) | B6: Nej | D6: valgt niveau | F6: Gule celler er til indtastning
A7: Med eller uden opdræt | B7: Uden opdræt | D7: valgt | F7: BEMÆRK! Der er skjulte kolonner og rækker i dette ark! For at se disse, skal arkbeskyttelsen fjernes under "Gennemse". Herudover er der skjulte ark med konstanter, kontrol af beregniger og formler
A8: Ydelsesniveau | B8: 12000 | D8: valgt niveau
A9: Mælkepris, kr. / kg EKM | B9: 2.5
A10: Kvier per årsko | B10: 0.8
A11: Foderoptagelseskapacitet, køer, FV | B11: =$B$77 -> 8.36562432 | D11: Se mellemregninger nederst
A12: Beregnet energibehov, MJ / dag | B12: =$B$90 -> 151.1597316 | D12: Se mellemregninger nederst
A13: Forøgelse af foderniveau, + MJ / dag | D13: Hvis konsulenten vurderer at det beregnede energibehov er for lavt, kan det justeres med tillæg her (eller fradrag)
A14: Foderniveau, MJ / dag (NEL20) | B14: =$B$12+$B$13 -> 151.1597316
A15: Majsensilage eller andet grovfoder
A16: Majsensilage, kg tørstof / ko / dag | B16: 10 | D16: Vurderes på den enkelte bedrift
A17: Majsensilage, NEL20, MJ / kg tørstof | B17: 6.24 | D17: Værdi fra fodermiddeltabellen, 1. slæt 2009
A18: Majsensilage, NDF i g / kg tørstof | B18: 359 | D18: Værdi fra fodermiddeltabellen, 1. slæt 2010
A19: Majsensilage, FK OS | B19: 77.5 | D19: Værdi fra fodermiddeltabellen, 1. slæt 2011
A20: Majsensilage, råaske, % | B20: 2.9
A21: Majsensilage, org. stof g/kg tørstof | B21: =(100-B20)*10 -> 971
A22: Majsensilage, FK NDF | B22: =100*((($B$18/10)-(((100-$B$20)*(100-$B$19)/100)-((100-$B$20-($B$18/10))*(100-(101.3-(902/((100-$B$20)-($B$18/10)))))/100)))/($B$18/10)) -> 62.05264624
A23: Majsensilage, kr. / ha | B23: 6000 | D23: 6957 kr / ha hvis gødning er gratis, afspejler dyrkningsomkostninger for landmanden, konventionel, JB 5-6, år 2010, 4 slæt årligt
A24: Majsensilage, FEN / ha | B24: 11500 | D24: Udbytte beregnet ud fra udbytte i FE i budgetkalkulen, JB 5-6, konventionel
A25: Majsensilage, MJ NELp20 / ha | B25: =$B$24*'NorFor, stand. + konst.'!$B$42 -> 85445
A26: Majsensilage, kr. / MJ NELp20 | B26: =$B$122 -> 0.07022060975
A27: Kraftfoder
A28: Kraftfoder i alt, kg tørstof / ko / dag | B28: =$B$99 -> 8.694198033
A29: Kraftfoder i alt, NEL20, MJ / ko / dag | B29: =$B$102 -> 60.85938623
A30: Kraftfoder, NEL20, MJ / kg tørstof (gennemsnit) | B30: 7 | D30: Gennemsnit hvis kraftfoder består af: 1/3 hvede, 1/3 rapskage, 1/3 sojaskrå, andel af tørstof
A31: Kraftfoder, g tørstof / kg foder (gennemsnit) | B31: 870 | D31: Gennemsnit hvis kraftfoder består af: 1/3 hvede, 1/3 rapskage, 1/3 sojaskrå, andel af tørstof
A32: Kraftfoder, pris kr. / kg (gennemsnit) | B32: =B37/3+B38*2/3 -> 2.413333333
A33: Kraftfoder, pris kr. / kg tørstof (gennemsnit) | B33: =$B$121 -> 2.77394636
A34: Kraftfoder, pris kr. / MJ (gennemsnit) | B34: =$B$120 -> 0.3962780515
A35: Pris urea, kr. pr kg. | B35: 4
A36: Pris suppleringsprotein - Urea | B36: =pris_råprot -> 1.372212693
A37: Korn pris, kr. pr kg. | B37: 1.4
A38: Kraftfoderpris (sojaskrå og rapskage), kr. pr kg | B38: 2.92
A39: Græsensilage
A40: Græsensilage, kg tørstof / ko / dag | B40: =$B$104 -> 4.442867699
A41: Græsensilage, MJ NELp20 / ko / dag | B41: =$B$107 -> 27.90034538
A42: Græsensilage, MJ / kvie / dag | B42: =B43*$B$55 -> 0
A43: Græsensilage, kg tørstof / kvie / dag | D43: Vurderes på den enkelte bedrift
A44: Græsensilage, FEN / ha | B44: 10500 | D44: Nettoudbytte per ha ifølge budgetkalkulen, JB 5-6
A45: Græsensilage, MJ NELp20 / ha | B45: =$B$44*'NorFor, stand. + konst.'!$B$42 -> 78015 | D45: Omregnet udbytte ud fra 7,42 MJ / FE
A46: Græsensilage, dyrkningsomkostninger kr. / ha | B46: 11580 | D46: Budgetkalkule 2010, konventionel, gødning er gratis, JB 5-6, = 8.512,-
A47: Alternativ afgrøde (fx vårbyg), DB kr. / ha | B47: 639 | D47: Budgetkalkule 2010, konventionel, JB 5-6, = 1.023,-
A49: Tidlighed og antal brugsår
A51: Middeltidlig_3_brugsår
A53: Græssort | B53: Foderværdi | C53: FK OS | D53: Organisk stof | E53: NDF | F53: FK NDF | G53: Fht. Udbytte | H53: Beregnet optagelse af græsensilage, køer | I53: Græsensilage, kvier | J53: Græsareal | K53: Pris på græsdyrkning, kr. / årsko* | L53: Omkostning-er til græs-dyrkning | M53: DB alternativ afgrøde | N53: Økonomisk værdi af råprotein | O53: Kraftfoder, MJ NELp20 / ko / dag* | P53: Pris på kraftfoder, kr. / årsko* | Q53: Omkostninger til kraftfoder | R53: Fordøjeligt org. stof i grovfoder, g / ration | S53: Org. stof i grovfoder, g / kg TS | T53: FK org. stof grov, gennemsnit | U53: Forskel i FK org stof grovfoder | V53: Ændring i mælkeproduktion, kg EKM / årsko | W53: Ændring i foderforbrug, MJ / årsko | X53: Ændring i mælkeindtjening ,kr. / årsko | Y53: Ekstra omkost. Til foder ved ændret produktion | Z53: Økonomisk værdi af FK org. stof | AA53: Total
B54: NEL20 MJ / kg TS | C54: % | D54: g / kg TS | E54: g / kg TS | F54: % | G54: - | H54: kg tørstof / ko / dag | I54: Kg tørstof / kvie / dag | J54: Ha / årsko | K54: Forskel til målesort, kr. / årsko
A55: ="Målesort: "&A51 -> Målesort: Middeltidlig_3_brugsår | B55: ='Græssorter - resultater'!B2 -> 6.279805583 | C55: ='Græssorter - resultater'!E2 -> 77.99240814 | D55: ='Græssorter - resultater'!D2 -> 913.6982865 | E55: ='Græssorter - resultater'!G2 -> 464.3768569 | F55: ='Græssorter - resultater'!H2 -> 74.50805769 | G55: ='Græssorter - resultater'!I2 -> 100 | H55: =B104 -> 4.442867699 | I55: =IF(B7=C141,(B43*B10),0) -> 0 | J55: =((($H55+$I55)*$B55)*Lak_dage)/(Majsensilage__MJ__NELp20___ha*(G55/100)) -> 0.1198053669 | K55: =$J55*$B$46 -> 1387.346149 | L55: - | M55: - | N55: 0 | O55: =$B$29 -> 60.85938623 | P55: =$O55*Lak_dage*$B$34 -> 8079.275061 | Q55: - | R55: =$B$94*$B$21*($B$19/100)+$B$104*$D55*($C55/100) -> 10691.30548 | S55: =$B$94*$B$21+$B$104*$D55 -> 13769.4406 | T55: =(R55/S55)*100 -> 77.64516941 | U55: - | V55: - | W55: - | X55: - | Y55: - | Z55: - | AA55: -
B56: =SUMIF(Sorter,'Græssorter - økonomisk merværdi'!$A56,'Græssorter - resultater'!B$3:B$175) -> 0 | C56: =SUMIF(Sorter,'Græssorter - økonomisk merværdi'!$A56,'Græssorter - resultater'!E$3:E$175) -> 0 | D56: =SUMIF(Sorter,'Græssorter - økonomisk merværdi'!$A56,'Græssorter - resultater'!D$3:D$175) -> 0 | E56: =SUMIF(Sorter,'Græssorter - økonomisk merværdi'!$A56,'Græssorter - resultater'!G$3:G$175) -> 0 | F56: =SUMIF(Sorter,'Græssorter - økonomisk merværdi'!$A56,'Græssorter - resultater'!H$3:H$175) -> 0 | G56: =SUMIF(Sorter,'Græssorter - økonomisk merværdi'!$A56,'Græssorter - resultater'!I$3:I$175) -> 0 | H56: =$E$104 ->  | I56: =I$55 -> 0 | L56: =$K$55-$K56 ->  | M56: =($J$55-$J56)*$B$47 ->  | N56: =((SUMIF(Sorter,'Græssorter - økonomisk merværdi'!$A56,'Græssorter - resultater'!M$3:M$175))*J56-'Græssorter - resultater'!$M$2*'Græssorter - økonomisk merværdi'!$J$55)*pris_råprot*udnytprot ->  | O56: =$E$102 -> 88.75973161 | P56: =($O$55*$B$34+(O56-$O$55)*0.85/7.43*$B$37)*Lak_dage -> 9576.243121 | Q56: =$P$55-$P56 -> -1496.96806 | R56: 7525.25 | S56: 9710 | T56: =(R56/S56)*100 -> 77.5 | U56: =T56-$T$55 -> -0.1451694126 | V56: =('Græssorter - økonomisk merværdi'!G162-'Græssorter - økonomisk merværdi'!$G$161)*Lak_dage -> -11.96173333 | W56: =(V56*'NorFor, stand. + konst.'!$B$35)/Foderudnyttelse -> -44.18805017 | X56: =V56*$B$9 -> -29.90433331 | Y56: =$W56*$E$124 ->  | Z56: =X56-Y56 ->  | AA56: =L56+M56+Q56+Z56+N56 -> 
B57: =SUMIF(Sorter,'Græssorter - økonomisk merværdi'!$A57,'Græssorter - resultater'!B$3:B$175) -> 0 | C57: =SUMIF(Sorter,'Græssorter - økonomisk merværdi'!$A57,'Græssorter - resultater'!E$3:E$175) -> 0 | D57: =SUMIF(Sorter,'Græssorter - økonomisk merværdi'!$A57,'Græssorter - resultater'!D$3:D$175) -> 0 | E57: =SUMIF(Sorter,'Græssorter - økonomisk merværdi'!$A57,'Græssorter - resultater'!G$3:G$175) -> 0 | F57: =SUMIF(Sorter,'Græssorter - økonomisk merværdi'!$A57,'Græssorter - resultater'!H$3:H$175) -> 0 | G57: =SUMIF(Sorter,'Græssorter - økonomisk merværdi'!$A57,'Græssorter - resultater'!I$3:I$175) -> 0 | H57: =$F$104 ->  | I57: =I$55 -> 0 | N57: =((SUMIF(Sorter,'Græssorter - økonomisk merværdi'!$A57,'Græssorter - resultater'!M$3:M$175))*J57-'Græssorter - resultater'!$M$2*'Græssorter - økonomisk merværdi'!$J$55)*pris_råprot*udnytprot ->  | O57: =$F$102 -> 88.75973161 | P57: 9576.243121 | Q57: =$P$55-$P57 -> -1496.96806 | R57: 7525.25 | S57: 9710 | T57: =(R57/S57)*100 -> 77.5 | U57: -0.1451694126 | V57: =('Græssorter - økonomisk merværdi'!G163-'Græssorter - økonomisk merværdi'!$G$161)*Lak_dage -> -11.96173333 | W57: =(V57*'NorFor, stand. + konst.'!$B$35)/Foderudnyttelse -> -44.18805017 | X57: =V57*$B$9 -> -29.90433331 | Y57: =$W57*$F$124 ->  | Z57: =X57-Y57 ->  | AA57: =L57+M57+Q57+Z57+N57 -> 
B58: =SUMIF(Sorter,'Græssorter - økonomisk merværdi'!$A58,'Græssorter - resultater'!B$3:B$175) -> 0 | C58: =SUMIF(Sorter,'Græssorter - økonomisk merværdi'!$A58,'Græssorter - resultater'!E$3:E$175) -> 0 | D58: =SUMIF(Sorter,'Græssorter - økonomisk merværdi'!$A58,'Græssorter - resultater'!D$3:D$175) -> 0 | E58: =SUMIF(Sorter,'Græssorter - økonomisk merværdi'!$A58,'Græssorter - resultater'!G$3:G$175) -> 0 | F58: =SUMIF(Sorter,'Græssorter - økonomisk merværdi'!$A58,'Græssorter - resultater'!H$3:H$175) -> 0 | G58: =SUMIF(Sorter,'Græssorter - økonomisk merværdi'!$A58,'Græssorter - resultater'!I$3:I$175) -> 0 | H58: =$G$104 ->  | I58: =I$55 -> 0 | N58: =((SUMIF(Sorter,'Græssorter - økonomisk merværdi'!$A58,'Græssorter - resultater'!M$3:M$175))*J58-'Græssorter - resultater'!$M$2*'Græssorter - økonomisk merværdi'!$J$55)*pris_råprot*udnytprot ->  | O58: =$G$102 -> 88.75973161 | P58: 9576.243121 | Q58: =$P$55-$P58 -> -1496.96806 | R58: 7525.25 | S58: 9710 | T58: 77.5 | U58: -0.1451694126 | V58: =('Græssorter - økonomisk merværdi'!G164-'Græssorter - økonomisk merværdi'!$G$161)*Lak_dage -> -11.96173333 | W58: =(V58*'NorFor, stand. + konst.'!$B$35)/Foderudnyttelse -> -44.18805017 | X58: =V58*$B$9 -> -29.90433331 | Y58: =$W58*$G$124 ->  | Z58: =X58-Y58 ->  | AA58: =L58+M58+Q58+Z58+N58 -> 
B59: =SUMIF(Sorter,'Græssorter - økonomisk merværdi'!$A59,'Græssorter - resultater'!B$3:B$175) -> 0 | C59: =SUMIF(Sorter,'Græssorter - økonomisk merværdi'!$A59,'Græssorter - resultater'!E$3:E$175) -> 0 | D59: =SUMIF(Sorter,'Græssorter - økonomisk merværdi'!$A59,'Græssorter - resultater'!D$3:D$175) -> 0 | E59: =SUMIF(Sorter,'Græssorter - økonomisk merværdi'!$A59,'Græssorter - resultater'!G$3:G$175) -> 0 | F59: =SUMIF(Sorter,'Græssorter - økonomisk merværdi'!$A59,'Græssorter - resultater'!H$3:H$175) -> 0 | G59: =SUMIF(Sorter,'Græssorter - økonomisk merværdi'!$A59,'Græssorter - resultater'!I$3:I$175) -> 0 | H59: =$H$104 ->  | I59: =I$55 -> 0 | N59: =((SUMIF(Sorter,'Græssorter - økonomisk merværdi'!$A59,'Græssorter - resultater'!M$3:M$175))*J59-'Græssorter - resultater'!$M$2*'Græssorter - økonomisk merværdi'!$J$55)*pris_råprot*udnytprot ->  | O59: =$H$102 -> 88.75973161 | P59: 9576.243121 | Q59: -1496.96806 | R59: 7525.25 | S59: 9710 | T59: 77.5 | U59: -0.1451694126 | V59: =('Græssorter - økonomisk merværdi'!G165-'Græssorter - økonomisk merværdi'!$G$161)*Lak_dage -> -11.96173333 | W59: =(V59*'NorFor, stand. + konst.'!$B$35)/Foderudnyttelse -> -44.18805017 | X59: =V59*$B$9 -> -29.90433331 | Y59: =$W59*$H$124 ->  | AA59: =L59+M59+Q59+Z59+N59 -> 
B60: =SUMIF(Sorter,'Græssorter - økonomisk merværdi'!$A60,'Græssorter - resultater'!B$3:B$175) -> 0 | C60: =SUMIF(Sorter,'Græssorter - økonomisk merværdi'!$A60,'Græssorter - resultater'!E$3:E$175) -> 0 | D60: =SUMIF(Sorter,'Græssorter - økonomisk merværdi'!$A60,'Græssorter - resultater'!D$3:D$175) -> 0 | E60: =SUMIF(Sorter,'Græssorter - økonomisk merværdi'!$A60,'Græssorter - resultater'!G$3:G$175) -> 0 | F60: =SUMIF(Sorter,'Græssorter - økonomisk merværdi'!$A60,'Græssorter - resultater'!H$3:H$175) -> 0 | G60: =SUMIF(Sorter,'Græssorter - økonomisk merværdi'!$A60,'Græssorter - resultater'!I$3:I$175) -> 0 | H60: =$H$104 ->  | I60: =I$55 -> 0 | N60: =((SUMIF(Sorter,'Græssorter - økonomisk merværdi'!$A60,'Græssorter - resultater'!M$3:M$175))*J60-'Græssorter - resultater'!$M$2*'Græssorter - økonomisk merværdi'!$J$55)*pris_råprot*udnytprot ->  | O60: =$H$102 -> 88.75973161 | P60: 9576.243121 | Q60: -1496.96806 | R60: 7525.25 | S60: 9710 | T60: =(R60/S60)*100 -> 77.5 | U60: -0.1451694126 | V60: =('Græssorter - økonomisk merværdi'!G166-'Græssorter - økonomisk merværdi'!$G$161)*Lak_dage -> -11.96173333 | W60: =(V60*'NorFor, stand. + konst.'!$B$35)/Foderudnyttelse -> -44.18805017 | X60: =V60*$B$9 -> -29.90433331 | Y60: =$W60*$H$124 ->  | AA60: =L60+M60+Q60+Z60+N60 -> 
B61: =SUMIF(Sorter,'Græssorter - økonomisk merværdi'!$A61,'Græssorter - resultater'!B$3:B$175) -> 0 | C61: =SUMIF(Sorter,'Græssorter - økonomisk merværdi'!$A61,'Græssorter - resultater'!E$3:E$175) -> 0 | D61: =SUMIF(Sorter,'Græssorter - økonomisk merværdi'!$A61,'Græssorter - resultater'!D$3:D$175) -> 0 | E61: =SUMIF(Sorter,'Græssorter - økonomisk merværdi'!$A61,'Græssorter - resultater'!G$3:G$175) -> 0 | F61: =SUMIF(Sorter,'Græssorter - økonomisk merværdi'!$A61,'Græssorter - resultater'!H$3:H$175) -> 0 | G61: =SUMIF(Sorter,'Græssorter - økonomisk merværdi'!$A61,'Græssorter - resultater'!I$3:I$175) -> 0 | I61: 0 | N61: =((SUMIF(Sorter,'Græssorter - økonomisk merværdi'!$A61,'Græssorter - resultater'!M$3:M$175))*J61-'Græssorter - resultater'!$M$2*'Græssorter - økonomisk merværdi'!$J$55)*pris_råprot*udnytprot ->  | O61: 88.75973161 | P61: 9576.243121 | Q61: -1496.96806 | R61: 7525.25 | S61: 9710 | T61: 77.5 | U61: -0.1451694126 | V61: =('Græssorter - økonomisk merværdi'!G167-'Græssorter - økonomisk merværdi'!$G$161)*Lak_dage -> -11.96173333 | W61: =(V61*'NorFor, stand. + konst.'!$B$35)/Foderudnyttelse -> -44.18805017 | X61: -29.90433331 | Y61: =$W61*$H$124 -> 
J62: * Bemærk enhed | N62: * Bemærk enhed | O62: * Bemærk enhed | Q62: * Bemærk enhed | R62: * Bemærk enhed | T62: * Bemærk enhed | V62: * Bemærk enhed | W62: * Bemærk enhed | X62: * Bemærk enhed
A72: Foderoptagelseskapacitet
A73: NorFor beregning | B73: Værdi | C73: Enhed | D73: Bemærkninger
A74: ICL_animal_primi | B74: =(IF($B$5=$B$128,'NorFor, stand. + konst.'!$B$21,'NorFor, stand. + konst.'!$B$19))*(('NorFor, stand. + konst.'!$B$9)^0.134)*(EXP((IF($B$5=$B$128,'NorFor, stand. + konst.'!$B$14,'NorFor, stand. + konst.'!$B$13))*'NorFor, stand. + konst.'!$B$9))-(('NorFor, stand. + konst.'!$B$9)^(-(IF('Græssorter - økonomisk merværdi'!$B$5=$B$128,'NorFor, stand. + konst.'!$B$25,'NorFor, stand. + konst.'!$B$23))))+(IF($B$5=$B$128,'NorFor, stand. + konst.'!$B$27,'NorFor, stand. + konst.'!$B$26))*(('Græssorter - økonomisk merværdi'!$B$8/Lak_dage)*'NorFor, stand. + konst.'!$B$36)+((IF($B$5=Tung,Vægt_Tung_kælv,Vægt_Jer_kælv))-(IF('Græssorter - økonomisk merværdi'!$B$5=Tung,factor_5_Tung_primi,factor_5_Jer_primi)))*0.006 -> 7.739509153 | C74: FVL | D74: Foderoptagelseskapacitet, 1. kalvs køer
A75: ICL_animal_multi | B75: =(IF($B$5=$B$128,factor_8_Tung_multi,factor_8_Jer_multi))*(('NorFor, stand. + konst.'!$B$9)^0.134)*(EXP((IF($B$5=$B$128,factor_4_tung,factor_4_Jer))*'NorFor, stand. + konst.'!$B$9))-(('NorFor, stand. + konst.'!$B$9)^(-(IF('Græssorter - økonomisk merværdi'!$B$5=$B$128,factor_9_Tung,factor_9_Jer_multi))))+(IF($B$5=$B$128,'NorFor, stand. + konst.'!$B$27,'NorFor, stand. + konst.'!$B$26))*(('Græssorter - økonomisk merværdi'!$B$8/Lak_dage)*'NorFor, stand. + konst.'!$B$37)+((IF($B$5=Tung,Vægt_Tung,Vægt_Jer))-(IF('Græssorter - økonomisk merværdi'!$B$5=Tung,factor_5_Tung_multi,factor_5_Jer_multi)))*0.006 -> 8.702763256 | C75: FVL | D75: Foderoptagelseskapacitet, øvrige køer
A76: ICL_excercise | B76: =(IF($B$6=$C$139,0.15,0)) -> 0 | C76: FVL | D76: ekstra kapacitet ved løsdrift
A77: FVL_intake_Max | B77: =$B$74*'NorFor, stand. + konst.'!$B$28+'Græssorter - økonomisk merværdi'!$B$75*'NorFor, stand. + konst.'!$B$29+'Græssorter - økonomisk merværdi'!$B$76 -> 8.36562432 | C77: FVL | D77: Samlet foderoptagelseskapacitet, gennemsnitsko
A78: Energibehov
A79: NEL_maint_prim | B79: =factor_1*((IF('Græssorter - økonomisk merværdi'!$B$5=Tung,Vægt_Tung_kælv,Vægt_Jer_kælv))^0.75)*(IF('Græssorter - økonomisk merværdi'!$B$6='Græssorter - økonomisk merværdi'!$C$139,NEL_Exercise_loose,NEL_exercise_tied)) -> 33.22668119 | C79: MJ | D79: Vedligeholdsbehov for 1. kalvs køer
A80: NEL_maint_multi | B80: =factor_1*((IF('Græssorter - økonomisk merværdi'!$B$5=Tung,Vægt_Tung,Vægt_Jer))^0.75)*(IF('Græssorter - økonomisk merværdi'!$B$6='Græssorter - økonomisk merværdi'!$C$139,NEL_Exercise_loose,NEL_exercise_tied)) -> 36.35035985 | C80: MJ | D80: Vedligeholdsbehov for øvrige køer
A81: NEL_maint | B81: =$B$79*'NorFor, stand. + konst.'!$B$28+'Græssorter - økonomisk merværdi'!$B$80*'NorFor, stand. + konst.'!$B$29 -> 35.25707232 | C81: MJ | D81: Vedligeholdsbehov, gennemsnitsko
A82: NEL_gain_p1 | B82: =0.00145*(IF($B$5=Tung,Vægt_Tung_kælv,Vægt_Jer_kælv))+12.48*gain_P1+0.68 -> 2.8503 | C82: MJ | D82: Behov til tilvækst, 1. kalvs køer
A83: NEL_gest_prim | B83: =((IF($B$5=Tung,Vægt_Tung_Exp,Vægt_Jersey_exp))/600)*(EXP((0.0144*gest_day-1.1595))) -> 0.5153229544 | C83: MJ | D83: Behov til drægtighed, 1. kalvs køer
A84: NEL_gest_multi | B84: =((IF($B$5=Tung,Vægt_Tung_Exp,Vægt_Jersey_exp))/600)*(EXP((0.0144*gest_day-1.1595))) -> 0.5153229544 | C84: MJ | D84: Behov til drægtighed, øvrige køer
A85: NEL_gest | B85: =$B$83*'NorFor, stand. + konst.'!$B$28+'Græssorter - økonomisk merværdi'!$B$84*'NorFor, stand. + konst.'!$B$29 -> 0.5153229544 | C85: MJ | D85: Behov til drægtighed, gennemsnitsko
A86: NEL_basis | B86: =$B$81+$B$82*'NorFor, stand. + konst.'!$B$28+'Græssorter - økonomisk merværdi'!$B$85 -> 36.77000027 | C86: MJ | D86: Energibehov, basis
A87: NEL_milk_prim | B87: =($B$8/Lak_dage)*'NorFor, stand. + konst.'!$B$36*'NorFor, stand. + konst.'!$B$35 -> 101.2298507 | C87: MJ | D87: Energibehov til produktion, 1. kalv
A88: NEL_milk_multi | B88: =($B$8/Lak_dage)*'NorFor, stand. + konst.'!$B$37*'NorFor, stand. + konst.'!$B$35 -> 121.4758209 | C88: MJ | D88: Energibehov til produktion, øvrige køer
A89: NEL_milk | B89: =$B$87*'NorFor, stand. + konst.'!$B$28+'Græssorter - økonomisk merværdi'!$B$88*'NorFor, stand. + konst.'!$B$29 -> 114.3897313 | C89: MJ | D89: Energibehov til produktion, gennemsnitsko
A90: NEL_total | B90: =$B$86+$B$89 -> 151.1597316 | C90: MJ | D90: Samlet energibehov, gennemsnitsko
A91: Sammensætning af foderrationer
A92: Fyldeværdi og mængder, foder, beregnet ud fra måleblanding og input | E92: Alt. sort 1 | F92: Alt. sort 2 | G92: Alt. sort 3 | H92: Alt. sort 4 | I92: Alt. sort 5
A93: Majsensilage, FVL / kg tørstof | B93: =(0.86-$B$19*0.005)/(0.94+0.56*(EXP((-0.000029*(($B$18/10)^2.9))))) -> 0.4076072273 | C93: FVLg | E93: =$B93 -> 0.4076072273 | F93: =$B93 -> 0.4076072273 | G93: 0.4076072273 | H93: 0.4076072273 | I93: 0.4076072273
A94: Majsensilage, kg TS / ko / dag | B94: =$B$16 -> 10 | C94: kgTSg | E94: 10 | F94: 10 | G94: 10 | H94: 10 | I94: 10
A95: Majsensilage, NEL20, MJ / kg TS | B95: =$B$17 -> 6.24 | C95: NELg | E95: 6.24 | F95: 6.24 | G95: 6.24 | H95: 6.24 | I95: 6.24
A96: Majsensilage, FVL i alt i ration ADDITIV! | B96: =$B$93*$B$94 -> 4.076072273 | E96: 4.076072273 | F96: 4.076072273 | G96: 4.076072273 | H96: 4.076072273 | I96: 4.076072273
A97: Majsensilage (ration), MJ NELp20 / ko / dag | B97: =$B$94*$B$95 -> 62.4 | E97: 62.4 | F97: 62.4 | G97: 62.4 | H97: 62.4 | I97: 62.4
A98: Kraftfoder, FVL / kg tørstof | B98: ='NorFor, stand. + konst.'!$B$38 -> 0.22 | C98: FVLk | E98: 0.22 | F98: 0.22 | G98: 0.22 | H98: 0.22 | I98: 0.22
A99: Kraftfoder, kg TS / ko / dag | B99: =(B103*FVL_const*('Græssorter - økonomisk merværdi'!$B$14-'Græssorter - økonomisk merværdi'!B95*'Græssorter - økonomisk merværdi'!B94)-'Græssorter - økonomisk merværdi'!B105*('Græssorter - økonomisk merværdi'!$B$11-'Græssorter - økonomisk merværdi'!B93*'Græssorter - økonomisk merværdi'!B94*FVL_const-FVL_r_expression))/('Græssorter - økonomisk merværdi'!B103*FVL_const*'Græssorter - økonomisk merværdi'!B100-'Græssorter - økonomisk merværdi'!B105*'Græssorter - økonomisk merværdi'!B98) -> 8.694198033 | C99: kgTSk | E99: =(E103*FVL_const*('Græssorter - økonomisk merværdi'!$B$14-'Græssorter - økonomisk merværdi'!E95*'Græssorter - økonomisk merværdi'!E94)-'Græssorter - økonomisk merværdi'!E105*('Græssorter - økonomisk merværdi'!$B$11-'Græssorter - økonomisk merværdi'!E93*'Græssorter - økonomisk merværdi'!E94*FVL_const-E$113))/('Græssorter - økonomisk merværdi'!E103*FVL_const*'Græssorter - økonomisk merværdi'!E100-'Græssorter - økonomisk merværdi'!E105*'Græssorter - økonomisk merværdi'!E98) -> 12.67996166 | F99: =(F103*FVL_const*('Græssorter - økonomisk merværdi'!$B$14-'Græssorter - økonomisk merværdi'!F95*'Græssorter - økonomisk merværdi'!F94)-'Græssorter - økonomisk merværdi'!F105*('Græssorter - økonomisk merværdi'!$B$11-'Græssorter - økonomisk merværdi'!F93*'Græssorter - økonomisk merværdi'!F94*FVL_const-F$113))/('Græssorter - økonomisk merværdi'!F103*FVL_const*'Græssorter - økonomisk merværdi'!F100-'Græssorter - økonomisk merværdi'!F105*'Græssorter - økonomisk merværdi'!F98) -> 12.67996166 | G99: =(G103*FVL_const*('Græssorter - økonomisk merværdi'!$B$14-'Græssorter - økonomisk merværdi'!G95*'Græssorter - økonomisk merværdi'!G94)-'Græssorter - økonomisk merværdi'!G105*('Græssorter - økonomisk merværdi'!$B$11-'Græssorter - økonomisk merværdi'!G93*'Græssorter - økonomisk merværdi'!G94*FVL_const-G$113))/('Græssorter - økonomisk merværdi'!G103*FVL_const*'Græssorter - økonomisk merværdi'!G100-'Græssorter - økonomisk merværdi'!G105*'Græssorter - økonomisk merværdi'!G98) -> 12.67996166 | H99: =(H103*FVL_const*('Græssorter - økonomisk merværdi'!$B$14-'Græssorter - økonomisk merværdi'!H95*'Græssorter - økonomisk merværdi'!H94)-'Græssorter - økonomisk merværdi'!H105*('Græssorter - økonomisk merværdi'!$B$11-'Græssorter - økonomisk merværdi'!H93*'Græssorter - økonomisk merværdi'!H94*FVL_const-H$113))/('Græssorter - økonomisk merværdi'!H103*FVL_const*'Græssorter - økonomisk merværdi'!H100-'Græssorter - økonomisk merværdi'!H105*'Græssorter - økonomisk merværdi'!H98) -> 12.67996166 | I99: =(I103*FVL_const*('Græssorter - økonomisk merværdi'!$B$14-'Græssorter - økonomisk merværdi'!I95*'Græssorter - økonomisk merværdi'!I94)-'Græssorter - økonomisk merværdi'!I105*('Græssorter - økonomisk merværdi'!$B$11-'Græssorter - økonomisk merværdi'!I93*'Græssorter - økonomisk merværdi'!I94*FVL_const-I$113))/('Græssorter - økonomisk merværdi'!I103*FVL_const*'Græssorter - økonomisk merværdi'!I100-'Græssorter - økonomisk merværdi'!I105*'Græssorter - økonomisk merværdi'!I98) -> 12.67996166
A100: Kraftfoder, NEL20, MJ / kg TS | B100: =$B$30 -> 7 | C100: NELk | E100: =$B100 -> 7 | F100: =$B100 -> 7 | G100: =$B100 -> 7 | H100: =$B100 -> 7 | I100: =$B100 -> 7
A101: Kraftfoder, FVL i alt i ration ADDITIV! | B101: =$B$98*$B$99 -> 1.912723567 | E101: =E$98*E$99 -> 2.789591565 | F101: =F$98*F$99 -> 2.789591565 | G101: =G$98*G$99 -> 2.789591565 | H101: =H$98*H$99 -> 2.789591565 | I101: =I$98*I$99 -> 2.789591565
A102: Kraftfoder (ration), NEL20 MJ / ko / dag | B102: =$B$99*$B$100 -> 60.85938623 | E102: =E$99*E$100 -> 88.75973161 | F102: =F$99*F$100 -> 88.75973161 | G102: =G$99*G$100 -> 88.75973161 | H102: =H$99*H$100 -> 88.75973161 | I102: =I$99*I$100 -> 88.75973161
A103: Græsensilage, FVL / kg tørstof | B103: =(0.86-$C$55*0.005)/(0.94+0.56*(EXP((-0.000029*(($E$55/10)^2.9))))) -> 0.4619812062 | C103: FVLm | E103: =(0.86-$C$56*0.005)/(0.94+0.56*(EXP((-0.000029*(($E$56/10)^2.9))))) -> 0.5733333333 | F103: =(0.86-$C$57*0.005)/(0.94+0.56*(EXP((-0.000029*(($E$57/10)^2.9))))) -> 0.5733333333 | G103: =(0.86-$C$58*0.005)/(0.94+0.56*(EXP((-0.000029*(($E$58/10)^2.9))))) -> 0.5733333333 | H103: =(0.86-$C$59*0.005)/(0.94+0.56*(EXP((-0.000029*(($E$59/10)^2.9))))) -> 0.5733333333 | I103: =(0.86-$C$61*0.005)/(0.94+0.56*(EXP((-0.000029*(($E$61/10)^2.9))))) -> 0.5733333333
A104: Græsensilage, kg TS / ko / dag | B104: =($B$14-B95*B94-B100*B99)/B105 -> 4.442867699 | C104: kgTSm | E104: =($B$14-E95*E94-E100*E99)/E105 ->  | F104: =($B$14-F95*F94-F100*F99)/F105 ->  | G104: =($B$14-G95*G94-G100*G99)/G105 ->  | H104: =($B$14-H95*H94-H100*H99)/H105 ->  | I104: =($B$14-I95*I94-I100*I99)/I105 -> 
A105: Græsensilage, NEL20, MJ / kg TS | B105: =$B$55 -> 6.279805583 | C105: NELm | E105: =$B$56 -> 0 | F105: =$B$57 -> 0 | G105: =$B$58 -> 0 | H105: =$B$59 -> 0 | I105: =$B$61 -> 0
A106: græsensilage, FVL i alt i ration ADDITIV! | B106: =$B$103*$B$104 -> 2.052521379 | E106: =E$103*E$104 ->  | F106: =F$103*F$104 ->  | G106: =G$103*G$104 ->  | H106: =H$103*H$104 ->  | I106: =I$103*I$104 -> 
A107: Græsensilage (ration), MJ NELp20 / ko / dag | B107: =$B$105*$B$104 -> 27.90034538 | E107: =E$105*E$104 ->  | F107: =F$105*F$104 ->  | G107: =G$105*G$104 ->  | H107: =H$105*H$104 ->  | I107: =I$105*I$104 -> 
A108: Kraftfoderandel | B108: =(B102/(B107+B102+B97))*100 -> 40.26163951 | E108: =(E102/(E107+E102+E97))*100 ->  | F108: =(F102/(F107+F102+F97))*100 ->  | G108: =(G102/(G107+G102+G97))*100 ->  | H108: =(H102/(H107+H102+H97))*100 ->  | I108: =(I102/(I107+I102+I97))*100 -> 
A109: Grovfoderandel | B109: =((B97+B107)/(B107+B102+B97))*100 -> 59.73836049 | E109: =((E97+E107)/(E107+E102+E97))*100 ->  | F109: =((F97+F107)/(F107+F102+F97))*100 ->  | G109: =((G97+G107)/(G107+G102+G97))*100 ->  | H109: =((H97+H107)/(H107+H102+H97))*100 ->  | I109: =((I97+I107)/(I107+I102+I97))*100 -> 
A110: Kg TS i ration | B110: =B94+B99+B104 -> 23.13706573 | E110: =E94+E99+E104 ->  | F110: =F94+F99+F104 ->  | G110: =G94+G99+G104 ->  | H110: =H94+H99+H104 ->  | I110: =I94+I99+I104 -> 
A112: FVL_r (som gns af FVLg og FVLm) | B112: =(B93+B103)/2 -> 0.4347942168 | E112: =(E93+E103)/2 -> 0.4904702803 | F112: =(F93+F103)/2 -> 0.4904702803 | G112: =(G93+G103)/2 -> 0.4904702803 | H112: =(H93+H103)/2 -> 0.4904702803 | I112: =(I93+I103)/2 -> 0.4904702803
A113: FVL_r_expression | B113: =(-(-1.453+(2.53/(1+(EXP((-(B112-0.466)/0.065)))))))*($B$11/8) -> 0.5081649104 | E113: =(-(-1.453+(2.53/(1+(EXP((-(E112-0.466)/0.065)))))))*($B$11/8) -> -0.04950533945 | F113: =(-(-1.453+(2.53/(1+(EXP((-(F112-0.466)/0.065)))))))*($B$11/8) -> -0.04950533945 | G113: =(-(-1.453+(2.53/(1+(EXP((-(G112-0.466)/0.065)))))))*($B$11/8) -> -0.04950533945 | H113: =(-(-1.453+(2.53/(1+(EXP((-(H112-0.466)/0.065)))))))*($B$11/8) -> -0.04950533945 | I113: =(-(-1.453+(2.53/(1+(EXP((-(I112-0.466)/0.065)))))))*($B$11/8) -> -0.04950533945
A114: Energi i alt, kontrol af beregning | B114: =$B$97+$B$102+$B$107 -> 151.1597316 | E114: =E97+E102+E107 ->  | F114: =F97+F102+F107 ->  | G114: =G97+G102+G107 ->  | H114: =H97+H102+H107 ->  | I114: =I97+I102+I107 -> 
A115: Fylde i alt, kontrol af beregning | B115: =B99*B98+B93*B94*FVL_const+'Græssorter - økonomisk merværdi'!B103*'Græssorter - økonomisk merværdi'!B104*FVL_const+FVL_r_expression -> 8.36562432 | E115: =E99*E98+E93*E94*FVL_const+'Græssorter - økonomisk merværdi'!E103*'Græssorter - økonomisk merværdi'!E104*FVL_const+E113 ->  | F115: =F99*F98+F93*F94*FVL_const+'Græssorter - økonomisk merværdi'!F103*'Græssorter - økonomisk merværdi'!F104*FVL_const+F113 ->  | G115: =G99*G98+G93*G94*FVL_const+'Græssorter - økonomisk merværdi'!G103*'Græssorter - økonomisk merværdi'!G104*FVL_const+G113 ->  | H115: =H99*H98+H93*H94*FVL_const+'Græssorter - økonomisk merværdi'!H103*'Græssorter - økonomisk merværdi'!H104*FVL_const+H113 ->  | I115: =I99*I98+I93*I94*FVL_const+'Græssorter - økonomisk merværdi'!I103*'Græssorter - økonomisk merværdi'!I104*FVL_const+I113 -> 
A116: Energikontrol | B116: =IF(ROUND($B$114,2)=ROUND($B$14,2),"OK","FEJL") -> OK | E116: =IF(ROUND(E$114,2)=ROUND($B$14,2),"OK","FEJL") ->  | F116: =IF(ROUND(F$114,2)=ROUND($B$14,2),"OK","FEJL") ->  | G116: =IF(ROUND(G$114,2)=ROUND($B$14,2),"OK","FEJL") ->  | H116: =IF(ROUND(H$114,2)=ROUND($B$14,2),"OK","FEJL") ->  | I116: =IF(ROUND(I$114,2)=ROUND($B$14,2),"OK","FEJL") -> 
A117: Fyldekontrol | B117: =IF(ROUND($B$115,2)=ROUND($B$11,2),"OK","FEJL") -> OK | E117: =IF(ROUND(E$115,2)=ROUND($B$11,2),"OK","FEJL") ->  | F117: =IF(ROUND(F$115,2)=ROUND($B$11,2),"OK","FEJL") ->  | G117: =IF(ROUND(G$115,2)=ROUND($B$11,2),"OK","FEJL") ->  | H117: =IF(ROUND(H$115,2)=ROUND($B$11,2),"OK","FEJL") ->  | I117: =IF(ROUND(I$115,2)=ROUND($B$11,2),"OK","FEJL") -> 
A119: Priser på mængder af foder i ration og gns. Pris per MJ
A120: Kraftfoder, kr. / MJ | B120: =$B$121/$B$30 -> 0.3962780515 | E120: =$B$120 -> 0.3962780515 | F120: =$B$120 -> 0.3962780515 | G120: =$B$120 -> 0.3962780515 | H120: =$B$120 -> 0.3962780515 | I120: =$B$120 -> 0.3962780515
A121: Kraftfoder, kr. / kg TS | B121: =$B$32/($B$31/1000) -> 2.77394636 | E121: =$B$121 -> 2.77394636 | F121: =$B$121 -> 2.77394636 | G121: =$B$121 -> 2.77394636 | H121: =$B$121 -> 2.77394636 | I121: =$B$121 -> 2.77394636
A122: Majsensilage, kr. / MJ | B122: =$B$23/$B$25 -> 0.07022060975 | E122: =$B$122 -> 0.07022060975 | F122: =$B$122 -> 0.07022060975 | G122: =$B$122 -> 0.07022060975 | H122: =$B$122 -> 0.07022060975 | I122: =$B$122 -> 0.07022060975
A123: Græsensilage, kr. / MJ | B123: =$B$46/(Majsensilage__MJ__NELp20___ha*($G$55/100)) -> 0.1484329937 | E123: =$B$46/(Majsensilage__MJ__NELp20___ha*($G$56/100)) ->  | F123: =$B$46/(Majsensilage__MJ__NELp20___ha*($G$57/100)) ->  | G123: =$B$46/(Majsensilage__MJ__NELp20___ha*($G$58/100)) ->  | H123: =$B$46/(Majsensilage__MJ__NELp20___ha*($G$59/100)) ->  | I123: =$B$46/(Majsensilage__MJ__NELp20___ha*($G$61/100)) -> 
A124: Gennemsnitlig pris pr MJ i ration | B124: =(B97*B122+B102*B120+B107*B123)/(B114) -> 0.2159327519 | E124: =(E97*E122+E102*E120+E107*E123)/(E114) ->  | F124: =(F97*F122+F102*F120+F107*F123)/(F114) ->  | G124: =(G97*G122+G102*G120+G107*G123)/(G114) ->  | H124: =(H97*H122+H102*H120+H107*H123)/(H114) ->  | I124: =(I97*I122+I102*I120+I107*I123)/(I114) -> 
A126: Tabel til rullelister
A127: Liste | B127: Enhed | C127: Værdi
A128: Race, vægt | B128: Tung | C128: ='NorFor, stand. + konst.'!B7 -> 620
B129: Jersey | C129: ='NorFor, stand. + konst.'!B4 -> 430
A130: Ydelse | B130: kg EKM | C130: 9000
B131: kg EKM | C131: 9500
B132: kg EKM | C132: 10000
B133: kg EKM | C133: 10500
B134: kg EKM | C134: 11000
B135: kg EKM | C135: 11500
B136: kg EKM | C136: 12000
B137: kg EKM | C137: 12500
B138: kg EKM | C138: 13000
A139: Løsdrift | B139: - | C139: Ja
B140: - | C140: Nej
A141: Med eller uden opdræt | B141: - | C141: Med opdræt
B142: - | C142: Uden opdræt
A145: Tidlig_2_brugsår | B145: Arolus, 2 brugsår | C145: Artesia, 2 brugsår | D145: Arvicola, 2 brugsår | E145: Betty, 2 brugsår | F145: Bijou, 2 brugsår | G145: Durendal, 2 brugsår | H145: Karatos, 2 brugsår | I145: Melspring, 2 brugsår
A146: Tidlig_3_brugsår | B146: Arolus, 3 brugsår | C146: Artesia, 3 brugsår | D146: Arvicola, 3 brugsår | E146: Betty, 3 brugsår | F146: Bijou, 3 brugsår | G146: Durendal, 3 brugsår | H146: Karatos, 3 brugsår | I146: Melspring, 3 brugsår
A147: Middeltidlig_2_brugsår | B147: AberGreen, 2 brugsår | C147: AberWolf, 2 brugsår | D147: Abosan 1, 2 brugsår | E147: AstonHockey, 2 brugsår | F147: Baranuta, 2 brugsår | G147: Barcampo, 2 brugsår | H147: Barfamos, 2 brugsår | I147: Bargizmo, 2 brugsår | J147: Borsato, 2 brugsår | K147: Briant, 2 brugsår | L147: Cangou, 2 brugsår | M147: Carraig, 2 brugsår | N147: Diwan, 2 brugsår | O147: DLF LFT-4725, 2 brugsår | P147: Dunluce, 2 brugsår | Q147: Ecrin, 2 brugsår | R147: Fabiola, 2 brugsår | S147: Garbor, 2 brugsår | T147: Gerrison, 2 brugsår | U147: Kubus, 2 brugsår | V147: Makura, 2 brugsår | W147: Massimo, 2 brugsår | X147: Matenga, 2 brugsår | Y147: Maurizio, 2 brugsår | Z147: Mercedes, 2 brugsår | AA147: Mischa, 2 brugsår | AB147: Nabesna, 2 brugsår | AC147: Novello, 2 brugsår | AD147: Ovambo, 2 brugsår | AE147: Praetorian, 2 brugsår | AF147: Solomon, 2 brugsår | AG147: Tiponi, 2 brugsår | AH147: Torgal, 2 brugsår | AI147: Tribal, 2 brugsår | AJ147: Vifelt, 2 brugsår | AK147: Youpi, 2 brugsår
A148: Middeltidlig_3_brugsår | B148: AberGreen, 3 brugsår | C148: AberWolf, 3 brugsår | D148: Abosan 1, 3 brugsår | E148: AstonHockey, 3 brugsår | F148: Baranuta, 3 brugsår | G148: Barcampo, 3 brugsår | H148: Barfamos, 3 brugsår | I148: Bargizmo, 3 brugsår | J148: Borsato, 3 brugsår | K148: Briant, 3 brugsår | L148: Cangou, 3 brugsår | M148: Carraig, 3 brugsår | N148: Diwan, 3 brugsår | O148: DLF LFT-4725, 3 brugsår | P148: Dunluce, 3 brugsår | Q148: Ecrin, 3 brugsår | R148: Fabiola, 3 brugsår | S148: Garbor, 3 brugsår | T148: Gerrison, 3 brugsår | U148: Kubus, 3 brugsår | V148: Makura, 3 brugsår | W148: Massimo, 3 brugsår | X148: Matenga, 3 brugsår | Y148: Maurizio, 3 brugsår | Z148: Mercedes, 3 brugsår | AA148: Mischa, 3 brugsår | AB148: Nabesna, 3 brugsår | AC148: Novello, 3 brugsår | AD148: Ovambo, 3 brugsår | AE148: Praetorian, 3 brugsår | AF148: Solomon, 3 brugsår | AG148: Tiponi, 3 brugsår | AH148: Torgal, 3 brugsår | AI148: Tribal, 3 brugsår | AJ148: Vifelt, 3 brugsår | AK148: Youpi, 3 brugsår
A149: Sildig_2_brugsår | B149: AberChoice, 2 brugsår | C149: Alcander, 2 brugsår | D149: Barflip, 2 brugsår | E149: Barganza, 2 brugsår | F149: Barhoney, 2 brugsår | G149: Barimero, 2 brugsår | H149: Barpasto, 2 brugsår | I149: Bovini, 2 brugsår | J149: Direct, 2 brugsår | K149: Dromara, 2 brugsår | L149: Ensilvio, 2 brugsår | M149: Estrada, 2 brugsår | N149: Everton, 2 brugsår | O149: Humbi 1, 2 brugsår | P149: Irondal, 2 brugsår | Q149: Kintyre, 2 brugsår | R149: Lassik, 2 brugsår | S149: Malambo, 2 brugsår | T149: Marniere, 2 brugsår | U149: Masai, 2 brugsår | V149: Melboldt, 2 brugsår | W149: Nashota, 2 brugsår | X149: Quadriga, 2 brugsår | Y149: Redding, 2 brugsår | Z149: Resista, 2 brugsår | AA149: Rossera, 2 brugsår | AB149: Saqui, 2 brugsår | AC149: Scotia, 2 brugsår | AD149: Sitala, 2 brugsår | AE149: Soyala, 2 brugsår | AF149: Splendid, 2 brugsår | AG149: Thegn, 2 brugsår | AH149: Timing, 2 brugsår | AI149: Toddington, 2 brugsår | AJ149: Valerio, 2 brugsår | AK149: Valmiron, 2 brugsår | AL149: Virtuose, 2 brugsår | AM149: Zenital, 2 brugsår
A150: Sildig_3_brugsår | B150: AberChoice, 3 brugsår | C150: Alcander, 3 brugsår | D150: Barflip, 3 brugsår | E150: Barganza, 3 brugsår | F150: Barhoney, 3 brugsår | G150: Barimero, 3 brugsår | H150: Barpasto, 3 brugsår | I150: Bovini, 3 brugsår | J150: Direct, 3 brugsår | K150: Dromara, 3 brugsår | L150: Ensilvio, 3 brugsår | M150: Estrada, 3 brugsår | N150: Everton, 3 brugsår | O150: Humbi 1, 3 brugsår | P150: Irondal, 3 brugsår | Q150: Kintyre, 3 brugsår | R150: Lassik, 3 brugsår | S150: Malambo, 3 brugsår | T150: Marniere, 3 brugsår | U150: Masai, 3 brugsår | V150: Melboldt, 3 brugsår | W150: Nashota, 3 brugsår | X150: Quadriga, 3 brugsår | Y150: Redding, 3 brugsår | Z150: Resista, 3 brugsår | AA150: Rossera, 3 brugsår | AB150: Saqui, 3 brugsår | AC150: Scotia, 3 brugsår | AD150: Sitala, 3 brugsår | AE150: Soyala, 3 brugsår | AF150: Splendid, 3 brugsår | AG150: Thegn, 3 brugsår | AH150: Timing, 3 brugsår | AI150: Toddington, 3 brugsår | AJ150: Valerio, 3 brugsår | AK150: Valmiron, 3 brugsår | AL150: Virtuose, 3 brugsår | AM150: Zenital, 3 brugsår
A153: EKM= -1104.62 -4.0562*FKOM + 333.73*LN(FKOM)
B155: EKM-ydelse
A156: Skæring | B156: -1104.62
A157: beta0 | B157: -4.0562
A158: beta1 | B158: 333.73
C159: Græs | F159: Grovfoder
A160: Valgte sorter | B160: NEL20 | C160: FK OS | D160: Kg EKM | F160: FK OS | G160: Kg EKM | H160: Forskel til målesort | I160: Lak_dage | J160: I alt
A161: ='Græssorter - økonomisk merværdi'!A55 -> Målesort: Middeltidlig_3_brugsår | B161: ='Græssorter - økonomisk merværdi'!B55 -> 6.279805583 | C161: ='Græssorter - økonomisk merværdi'!C55 -> 77.99240814 | D161: =$B$156+$B$157*C161+$B$158*LN(C161) -> 32.9591468 | F161: ='Græssorter - økonomisk merværdi'!T55 -> 77.64516941 | G161: =$B$156+$B$157*F161+$B$158*LN(F161) -> 32.87846237
A162: ='Græssorter - økonomisk merværdi'!A56 -> 0 | B162: ='Græssorter - økonomisk merværdi'!B56 -> 0 | C162: ='Græssorter - økonomisk merværdi'!C56 -> 0 | F162: ='Græssorter - økonomisk merværdi'!T56 -> 77.5 | G162: 32.8427557 | H162: =G162-$G$161 -> -0.03570666664 | I162: =Lak_dage -> 335 | J162: =H162*I162 -> -11.96173333
A163: ='Græssorter - økonomisk merværdi'!A57 -> 0 | B163: ='Græssorter - økonomisk merværdi'!B57 -> 0 | C163: ='Græssorter - økonomisk merværdi'!C57 -> 0 | F163: ='Græssorter - økonomisk merværdi'!T57 -> 77.5 | G163: 32.8427557 | H163: -0.03570666664 | I163: 335 | J163: -11.96173333
A164: ='Græssorter - økonomisk merværdi'!A58 -> 0 | B164: ='Græssorter - økonomisk merværdi'!B58 -> 0 | C164: ='Græssorter - økonomisk merværdi'!C58 -> 0 | F164: ='Græssorter - økonomisk merværdi'!T58 -> 77.5 | G164: 32.8427557 | H164: -0.03570666664 | I164: 335 | J164: -11.96173333
A165: ='Græssorter - økonomisk merværdi'!A59 -> 0 | B165: ='Græssorter - økonomisk merværdi'!B59 -> 0 | C165: ='Græssorter - økonomisk merværdi'!C59 -> 0 | F165: ='Græssorter - økonomisk merværdi'!T59 -> 77.5 | G165: 32.8427557 | H165: -0.03570666664 | I165: 335 | J165: -11.96173333
A166: ='Græssorter - økonomisk merværdi'!A60 -> 0 | B166: ='Græssorter - økonomisk merværdi'!B60 -> 0 | C166: ='Græssorter - økonomisk merværdi'!C60 -> 0 | F166: ='Græssorter - økonomisk merværdi'!T60 -> 77.5 | G166: 32.8427557 | H166: -0.03570666664 | I166: 335 | J166: -11.96173333
A167: ='Græssorter - økonomisk merværdi'!A61 -> 0 | B167: ='Græssorter - økonomisk merværdi'!B61 -> 0 | C167: ='Græssorter - økonomisk merværdi'!C61 -> 0 | F167: ='Græssorter - økonomisk merværdi'!T61 -> 77.5 | G167: 32.8427557 | H167: -0.03570666664 | I167: 335 | J167: -11.96173333

Sheet Græssorter - resultater
A1: Sorter | B1: NEL20, MJ / kg TS | C1: Aske, g/kg TS | D1: Org. stof | E1: FK org. Stof | F1: NDF, % af TS | G1: NDF, g / kg TS | H1: FK NDF, % | I1: Udbytte, fht. NEL20 | J1: Råprotein, % af TS | K1: Råprotein, % af TS | L1: Kg TS | M1: Kg råprot pr ha
A2: ='Græssorter - økonomisk merværdi'!A51 -> Middeltidlig_3_brugsår | B2: =SUMIF(Målesorter,$A$2,'Græssorter - Måleblandinger'!B2:B7) -> 6.279805583 | C2: =SUMIF(Målesorter,$A$2,'Græssorter - Måleblandinger'!C2:C7) -> 86.18503636 | D2: =SUMIF(Målesorter,$A$2,'Græssorter - Måleblandinger'!D2:D7) -> 913.6982865 | E2: =SUMIF(Målesorter,$A$2,'Græssorter - Måleblandinger'!E2:E7) -> 77.99240814 | F2: =SUMIF(Målesorter,$A$2,'Græssorter - Måleblandinger'!F2:F7) -> 46.43768569 | G2: =SUMIF(Målesorter,$A$2,'Græssorter - Måleblandinger'!G2:G7) -> 464.3768569 | H2: =SUMIF(Målesorter,$A$2,'Græssorter - Måleblandinger'!H2:H7) -> 74.50805769 | I2: =SUMIF(Målesorter,$A$2,'Græssorter - Måleblandinger'!I2:I7) -> 100 | J2: =SUMIF(Målesorter,$A$2,'Græssorter - Måleblandinger'!J2:J7) -> 15.55758225 | K2: =J2/100 -> 0.1555758225 | L2: =SUMIF(Målesorter,$A$2,'Græssorter - Måleblandinger'!L2:L7) -> 12403.93739 | M2: =L2*K2 -> 1929.752762
A3: Arolus, 2 brugsår | B3: 6.172454474 | C3: 81.80341493 | D3: =1000-C3 -> 918.1965851 | E3: 76.26056303 | F3: =G3/10 -> 47.53820547 | G3: 475.3820547 | H3: 71.82382342 | I3: 91.5 | J3: =K3*100 -> 16.12178708 | K3: 0.1612178708 | L3: =mj_fe*fe_ha/B3*I3/$I$2 -> 11564.88481 | M3: =L3*K3 -> 1864.466105
A4: Artesia, 2 brugsår | B4: 6.220029955 | C4: 86.06197787 | D4: =1000-C4 -> 913.9380221 | E4: 77.14148329 | F4: =G4/10 -> 46.04636631 | G4: 460.4636631 | H4: 72.9849097 | I4: 91 | J4: 15.80204296 | K4: 0.1580204296 | L4: =mj_fe*fe_ha/B4*I4/$I$2 -> 11413.71513 | M4: =L4*K4 -> 1803.600168
A5: Arvicola, 2 brugsår | B5: 6.321553727 | C5: 84.90496615 | D5: 915.0950339 | E5: 78.02186199 | F5: 46.82436451 | G5: 468.2436451 | H5: 75.19050923 | I5: 105.5 | J5: =K5*100 -> 15.53516664 | K5: 0.1553516664 | L5: =mj_fe*fe_ha/B5*I5/$I$2 -> 13019.87273 | M5: 2022.658926
A6: Betty, 2 brugsår | B6: 6.221472774 | C6: 86.01529623 | D6: 913.9847038 | E6: 77.25373504 | F6: 47.15220728 | G6: 471.5220728 | H6: 73.58453097 | I6: 103.5 | J6: 15.71204991 | K6: 0.1571204991 | L6: 12978.5226 | M6: 2039.191949
A7: Bijou, 2 brugsår | B7: 6.34428313 | C7: 88.24548043 | D7: 911.7545196 | E7: 78.9746802 | F7: 45.15686204 | G7: 451.5686204 | H7: 76.07818534 | I7: 104.5 | J7: 15.48291732 | K7: 0.1548291732 | L7: 12850.25799 | M7: 1989.594821
A8: Durendal, 2 brugsår | B8: 6.210301998 | C8: 83.85412122 | D8: 916.1458788 | E8: 77.20653948 | F8: 46.54927179 | G8: 465.4927179 | H8: 72.70197943 | I8: 99 | J8: 15.74868672 | K8: 0.1574868672 | L8: =mj_fe*fe_ha/B8*I8/$I$2 -> 12436.56911 | M8: =L8*K8 -> 1958.596308
A9: Karatos, 2 brugsår | B9: 6.232393735 | C9: 85.81458176 | D9: 914.1854182 | E9: 77.39614375 | F9: 46.7881419 | G9: 467.881419 | H9: 73.80226969 | I9: 103 | J9: 15.49710854 | K9: 0.1549710854 | L9: 12893.19215 | M9: 1998.071983
A10: Melspring, 2 brugsår | B10: 6.231829511 | C10: 84.12757467 | D10: 915.8724253 | E10: 77.19182746 | F10: 47.44858834 | G10: 474.4858834 | H10: 73.62354559 | I10: 107.5 | J10: 15.52401485 | K10: 0.1552401485 | L10: 13457.70529 | M10: 2089.176169
A12: Arolus, 3 brugsår | B12: 6.172454474 | C12: 81.80341493 | D12: =1000-C12 -> 918.1965851 | E12: 76.26056303 | F12: =G12/10 -> 47.53820547 | G12: 475.3820547 | H12: 71.82382342 | I12: 91 | J12: 16.12178708 | K12: 0.1612178708 | L12: =mj_fe*fe_ha/B12*I12/$I$2 -> 11501.68872 | M12: =L12*K12 -> 1854.277766
A13: Artesia, 3 brugsår | B13: 6.220029955 | C13: 86.06197787 | D13: =1000-C13 -> 913.9380221 | E13: 77.14148329 | F13: 46.04636631 | G13: 460.4636631 | H13: 72.9849097 | I13: 89.33333333 | J13: 15.80204296 | K13: 0.1580204296 | L13: =mj_fe*fe_ha/B13*I13/$I$2 -> 11204.67273 | M13: 1770.567198
A14: Arvicola, 3 brugsår | B14: 6.321553727 | C14: 84.90496615 | D14: 915.0950339 | E14: 78.02186199 | F14: 46.82436451 | G14: 468.2436451 | H14: 75.19050923 | I14: 102.6666667 | J14: 15.53516664 | K14: 0.1553516664 | L14: 12670.2079 | M14: 1968.337912
A15: Betty, 3 brugsår | B15: 6.221472774 | C15: 86.01529623 | D15: 913.9847038 | E15: 77.25373504 | F15: 47.15220728 | G15: 471.5220728 | H15: 73.58453097 | I15: 102.6666667 | J15: 15.71204991 | K15: 0.1571204991 | L15: 12874.02564 | M15: 2022.773334
A16: Bijou, 3 brugsår | B16: 6.34428313 | C16: 88.24548043 | D16: 911.7545196 | E16: 78.9746802 | F16: 45.15686204 | G16: 451.5686204 | H16: 76.07818534 | I16: 102.3333333 | J16: 15.48291732 | K16: 0.1548291732 | L16: 12583.82521 | M16: 1948.343253
A17: Durendal, 3 brugsår | B17: 6.210301998 | C17: 83.85412122 | D17: 916.1458788 | E17: 77.20653948 | F17: 46.54927179 | G17: 465.4927179 | H17: 72.70197943 | I17: 100.3333333 | J17: 15.74868672 | K17: 0.1574868672 | L17: =mj_fe*fe_ha/B17*I17/$I$2 -> 12604.06499 | M17: 1984.974709
A18: Karatos, 3 brugsår | B18: 6.232393735 | C18: 85.81458176 | D18: 914.1854182 | E18: 77.39614375 | F18: 46.7881419 | G18: 467.881419 | H18: 73.80226969 | I18: 105.6666667 | J18: 15.49710854 | K18: 0.1549710854 | L18: 13226.99648 | M18: 2049.802002
A19: Melspring, 3 brugsår | B19: 6.231829511 | C19: 84.12757467 | D19: 915.8724253 | E19: 77.19182746 | F19: 47.44858834 | G19: 474.4858834 | H19: 73.62354559 | I19: 108.3333333 | J19: 15.52401485 | K19: 0.1552401485 | L19: 13562.02859 | M19: 2105.371333
A21: AberGreen, 2 brugsår | B21: 6.191843086 | C21: 79.21449891 | D21: =1000-C21 -> 920.7855011 | E21: 77.282623 | F21: =G21/10 -> 46.57353994 | G21: 465.7353994 | H21: 72.42372615 | I21: 93.5 | J21: =K21*100 -> 15.0267309 | K21: 0.150267309 | L21: =mj_fe*fe_ha/B21*I21/$I$2 -> 11780.66433 | M21: =L21*K21 -> 1770.248728
A22: AberWolf, 2 brugsår | B22: 6.30470739 | C22: 86.40213773 | D22: 913.5978623 | E22: 78.2441156 | F22: 46.59575917 | G22: 465.9575917 | H22: 75.27280004 | I22: 101 | J22: 15.41333854 | K22: 0.1541333854 | L22: 12497.82823 | M22: 1926.332576
A23: Abosan 1, 2 brugsår | B23: 6.16612372 | C23: 87.06318236 | D23: 912.9368176 | E23: 77.02378274 | F23: 47.21169658 | G23: 472.1169658 | H23: 73.11909447 | I23: 102.5 | J23: 14.86213108 | K23: 0.1486213108 | L23: 12968.49992 | M23: 1927.395458
A24: AstonHockey, 2 brugsår | B24: 6.265461416 | C24: 86.75691164 | D24: 913.2430884 | E24: 78.26202589 | F24: 45.30248097 | G24: 453.0248097 | H24: 74.44063477 | I24: 96.5 | J24: 14.62993243 | K24: 0.1462993243 | L24: 12015.79102 | M24: 1757.902106
A25: Baranuta, 2 brugsår | B25: 6.28556609 | C25: 90.73513539 | D25: 909.2648646 | E25: 78.12390553 | F25: 46.03054142 | G25: 460.3054142 | H25: 74.76545392 | I25: 94.5 | J25: 16.17415767 | K25: 0.1617415767 | L25: 11729.12256 | M25: 1897.086776
A26: Barcampo, 2 brugsår | B26: 6.265107723 | C26: 91.25233201 | D26: 908.747668 | E26: 77.5968424 | F26: 47.94078759 | G26: 479.4078759 | H26: 75.19382072 | I26: 104 | J26: 15.54288068 | K26: 0.1554288068 | L26: 12950.39185 | M26: 2012.863952
A27: Barfamos, 2 brugsår | B27: 6.37084459 | C27: 89.640124 | D27: 910.359876 | E27: 79.09326574 | F27: 45.36761494 | G27: 453.6761494 | H27: 76.29322598 | I27: 102.5 | J27: 16.55779466 | K27: 0.1655779466 | L27: 12551.76984 | M27: 2078.296277
A28: Bargizmo, 2 brugsår | B28: 6.313889307 | C28: 88.00542946 | D28: 911.9945705 | E28: 78.29411163 | F28: 46.78889017 | G28: 467.8889017 | H28: 75.49759679 | I28: 102 | J28: 15.48782573 | K28: 0.1548782573 | L28: 12603.2143 | M28: 1951.963868
A29: Borsato, 2 brugsår | B29: 6.189629262 | C29: 85.84608105 | D29: 914.1539189 | E29: 76.88321919 | F29: 47.90513172 | G29: 479.0513172 | H29: 73.26969269 | I29: 101 | J29: 14.8826606 | K29: 0.148826606 | L29: 12730.18895 | M29: 1894.590814
A30: Briant, 2 brugsår | B30: 6.29273733 | C30: 88.88946543 | D30: 911.1105346 | E30: 78.25779713 | F30: 46.59636892 | G30: 465.9636892 | H30: 75.25607787 | I30: 106.5 | J30: 15.94899987 | K30: 0.1594899987 | L30: 13203.47102 | M30: 2105.821577
A31: Cangou, 2 brugsår | B31: 6.223793266 | C31: 85.25755797 | D31: 914.742442 | E31: 77.38471456 | F31: 47.44622293 | G31: 474.4622293 | H31: 74.12446573 | I31: 101.5 | J31: 14.92019334 | K31: 0.1492019334 | L31: 12722.98446 | M31: 1898.29388
A32: Carraig, 2 brugsår | B32: 6.143796445 | C32: 84.08857804 | D32: 915.911422 | E32: 76.75480356 | F32: 47.16231661 | G32: 471.6231661 | H32: 72.46512502 | I32: 92 | J32: 14.6698564 | K32: 0.146698564 | L32: 11682.32064 | M32: 1713.779662
A33: Diwan, 2 brugsår | B33: 6.243698902 | C33: 83.01722711 | D33: 916.9827729 | E33: 77.15807956 | F33: 47.17997907 | G33: 471.7997907 | H33: 73.17363127 | I33: 100 | J33: 15.42329316 | K33: 0.1542329316 | L33: 12494.99715 | M33: 1927.140042
A34: DLF LFT-4725, 2 brugsår | B34: 6.254848808 | C34: 87.94937468 | D34: 912.0506253 | E34: 77.81413929 | F34: 46.59722049 | G34: 465.9722049 | H34: 74.45128126 | I34: 108.5 | J34: 15.94747387 | K34: 0.1594747387 | L34: 13532.90505 | M34: 2158.156496
A35: Dunluce, 2 brugsår | B35: 6.352773022 | C35: 87.38556961 | D35: 912.6144304 | E35: 79.32953819 | F35: 44.84430341 | G35: 448.4430341 | H35: 76.42249834 | I35: 104 | J35: 15.54778946 | K35: 0.1554778946 | L35: 12771.6825 | M35: 1985.714305
A36: Ecrin, 2 brugsår | B36: 6.326414803 | C36: 88.6347122 | D36: 911.3652878 | E36: 78.68809627 | F36: 46.57661748 | G36: 465.7661748 | H36: 76.04043799 | I36: 99.5 | J36: 15.6165849 | K36: 0.156165849 | L36: 12269.97082 | M36: 1916.150409
A37: Fabiola, 2 brugsår | B37: 6.212718506 | C37: 86.98025615 | D37: 913.0197439 | E37: 77.17695867 | F37: 47.81199669 | G37: 478.1199669 | H37: 74.14464085 | I37: 103 | J37: 15.14527078 | K37: 0.1514527078 | L37: 12934.02396 | M37: 1958.892951
A38: Garbor, 2 brugsår | B38: 6.371026116 | C38: 85.90370234 | D38: 914.0962977 | E38: 79.26985615 | F38: 45.21553674 | G38: 452.1553674 | H38: 76.62096168 | I38: 99 | J38: 14.881023 | K38: 0.14881023 | L38: 12122.8274 | M38: 1804.000734
A39: Gerrison, 2 brugsår | B39: 6.262794442 | C39: 86.85301584 | D39: 913.1469842 | E39: 77.51569985 | F39: 46.50405817 | G39: 465.0405817 | H39: 73.58558447 | I39: 91.5 | J39: 16.60183766 | K39: 0.1660183766 | L39: 11398.0629 | M39: 1892.287899
A40: Kubus, 2 brugsår | B40: 6.236642001 | C40: 87.68761506 | D40: 912.3123849 | E40: 77.5090058 | F40: 46.49022083 | G40: 464.9022083 | H40: 73.85729618 | I40: 93.5 | J40: 15.69975091 | K40: 0.1569975091 | L40: 11696.04171 | M40: 1836.249415
A41: Makura, 2 brugsår | B41: 6.240261689 | C41: 89.52500268 | D41: 910.4749973 | E41: 77.75990553 | F41: 47.55455994 | G41: 475.5455994 | H41: 74.93297304 | I41: 98.5 | J41: 14.72927614 | K41: 0.1472927614 | L41: 12314.35136 | M41: 1813.814817
A42: Massimo, 2 brugsår | B42: 6.206334895 | C42: 82.93028955 | D42: 917.0697104 | E42: 76.99385132 | F42: 47.14436665 | G42: 471.4436665 | H42: 72.82131093 | I42: 92.5 | J42: 15.28720195 | K42: 0.1528720195 | L42: 11627.45424 | M42: 1777.512411
A43: Matenga, 2 brugsår | B43: 6.180411036 | C43: 87.41188132 | D43: 912.5881187 | E43: 76.77039168 | F43: 47.55203771 | G43: 475.5203771 | H43: 72.88138599 | I43: 97 | J43: 15.74628647 | K43: 0.1574628647 | L43: 12244.25844 | M43: 1928.01601
A44: Maurizio, 2 brugsår | B44: 6.207464732 | C44: 86.06027664 | D44: 913.9397234 | E44: 76.82911954 | F44: 47.71197707 | G44: 477.1197707 | H44: 73.07365441 | I44: 96.5 | J44: 15.50269605 | K44: 0.1550269605 | L44: 12128.05521 | M44: 1880.175536
A45: Mercedes, 2 brugsår | B45: 6.253320812 | C45: 86.6502941 | D45: 913.3497059 | E45: 77.80131458 | F45: 46.62554201 | G45: 466.2554201 | H45: 74.18283242 | I45: 92.5 | J45: 15.78479294 | K45: 0.1578479294 | L45: 11540.08841 | M45: 1821.57906
A46: Mischa, 2 brugsår | B46: 6.154141164 | C46: 86.37683759 | D46: 913.6231624 | E46: 76.56551947 | F46: 47.94597801 | G46: 479.4597801 | H46: 72.69286354 | I46: 90 | J46: 15.75898652 | K46: 0.1575898652 | L46: 11409.14681 | M46: 1797.965908
A47: Nabesna, 2 brugsår | B47: 6.2366355 | C47: 82.06239088 | D47: 917.9376091 | E47: 77.30414673 | F47: 45.86328562 | G47: 458.6328562 | H47: 72.69252178 | I47: 92 | J47: 16.26654503 | K47: 0.1626654503 | L47: 11508.41668 | M47: 1872.021781
A48: Novello, 2 brugsår | B48: 6.324499644 | C48: 89.69701943 | D48: 910.3029806 | E48: 78.70386985 | F48: 45.40724583 | G48: 454.0724583 | H48: 75.52206402 | I48: 95.5 | J48: 16.12438696 | K48: 0.1612438696 | L48: 11780.27183 | M48: 1899.496615
A49: Ovambo, 2 brugsår | B49: 6.220665125 | C49: 89.44721397 | D49: 910.552786 | E49: 77.31077886 | F49: 47.135206 | G49: 471.35206 | H49: 73.93949967 | I49: 102.5 | J49: 15.63564268 | K49: 0.1563564268 | L49: 12854.79501 | M49: 2009.929815
A50: Praetorian, 2 brugsår | B50: 6.107727515 | C50: 86.37676425 | D50: 913.6232357 | E50: 75.82796426 | F50: 48.79725449 | G50: 487.9725449 | H50: 71.69161794 | I50: 98 | J50: 15.85783404 | K50: 0.1585783404 | L50: 12517.69988 | M50: 1985.036073
A51: Solomon, 2 brugsår | B51: 6.140500045 | C51: 86.22433983 | D51: 913.7756602 | E51: 76.42354948 | F51: 47.73653847 | G51: 477.3653847 | H51: 72.40689159 | I51: 93 | J51: 15.27648349 | K51: 0.1527648349 | L51: 11815.64196 | M51: 1805.014593
A52: Tiponi, 2 brugsår | B52: 6.175257223 | C52: 86.58557062 | D52: 913.4144294 | E52: 76.66563145 | F52: 47.32637449 | G52: 473.2637449 | H52: 72.43847312 | I52: 95.5 | J52: 16.05987606 | K52: 0.1605987606 | L52: 12064.97516 | M52: 1937.620057
A53: Torgal, 2 brugsår | B53: 6.233672933 | C53: 85.50557213 | D53: 914.4944279 | E53: 77.41321195 | F53: 47.01570021 | G53: 470.1570021 | H53: 73.82123118 | I53: 90.5 | J53: 15.53853434 | K53: 0.1553853434 | L53: 11326.15968 | M53: 1759.919211
A54: Tribal, 2 brugsår | B54: 6.391355276 | C54: 86.27518076 | D54: 913.7248192 | E54: 79.2925696 | F54: 44.78250572 | G54: 447.8250572 | H54: 76.58198847 | I54: 96 | J54: 15.45868962 | K54: 0.1545868962 | L54: 11718.07805 | M54: 1811.461316
A55: Vifelt, 2 brugsår | B55: 6.268554095 | C55: 88.68462714 | D55: 911.3153729 | E55: 77.69353065 | F55: 46.59592181 | G55: 465.9592181 | H55: 74.35657624 | I55: 103 | J55: 16.1807547 | K55: 0.161807547 | L55: 12818.81735 | M55: 2074.181391
A56: Youpi, 2 brugsår | B56: 6.392095809 | C56: 85.47532055 | D56: 914.5246795 | E56: 79.77334042 | F56: 44.12124205 | G56: 441.2124205 | H56: 76.76427325 | I56: 96.5 | J56: 15.21569728 | K56: 0.1521569728 | L56: 11777.74509 | M56: 1792.066038
D57: 1000 | F57: =G57/10 -> 0 | J57: 0 | L57: =mj_fe*fe_ha/B57*I57/$I$2 ->  | M57: =L57*K57 -> 
A58: AberGreen, 3 brugsår | B58: 6.191843086 | C58: 79.21449891 | D58: =1000-C58 -> 920.7855011 | E58: 77.282623 | F58: =G58/10 -> 46.57353994 | G58: 465.7353994 | H58: 72.42372615 | I58: 97 | J58: =K58*100 -> 15.0267309 | K58: 0.150267309 | L58: =mj_fe*fe_ha/B58*I58/$I$2 -> 12221.65177 | M58: =L58*K58 -> 1836.514723
A59: AberWolf, 3 brugsår | B59: 6.30470739 | C59: 86.40213773 | D59: 913.5978623 | E59: 78.2441156 | F59: 46.59575917 | G59: 465.9575917 | H59: 75.27280004 | I59: 103 | J59: 15.41333854 | K59: 0.1541333854 | L59: 12745.30998 | M59: 1964.477775
A60: Abosan 1, 3 brugsår | B60: 6.16612372 | C60: 87.06318236 | D60: 912.9368176 | E60: 77.02378274 | F60: 47.21169658 | G60: 472.1169658 | H60: 73.11909447 | I60: 108.3333333 | J60: 14.86213108 | K60: 0.1486213108 | L60: 13706.54464 | M60: 2037.084631
A61: AstonHockey, 3 brugsår | B61: 6.265461416 | C61: 86.75691164 | D61: 913.2430884 | E61: 78.26202589 | F61: 45.30248097 | G61: 453.0248097 | H61: 74.44063477 | I61: 95 | J61: 14.62993243 | K61: 0.1462993243 | L61: 11829.01706 | M61: 1730.577203
A62: Baranuta, 3 brugsår | B62: 6.28556609 | C62: 90.73513539 | D62: 909.2648646 | E62: 78.12390553 | F62: 46.03054142 | G62: 460.3054142 | H62: 74.76545392 | I62: 99.33333333 | J62: 16.17415767 | K62: 0.1617415767 | L62: 12329.02477 | M62: 1994.115905
A63: Barcampo, 3 brugsår | B63: 6.265107723 | C63: 91.25233201 | D63: 908.747668 | E63: 77.5968424 | F63: 47.94078759 | G63: 479.4078759 | H63: 75.19382072 | I63: 105.6666667 | J63: 15.54288068 | K63: 0.1554288068 | L63: 13157.93018 | M63: 2045.121388
A64: Barfamos, 3 brugsår | B64: 6.37084459 | C64: 89.640124 | D64: 910.359876 | E64: 79.09326574 | F64: 45.36761494 | G64: 453.6761494 | H64: 76.29322598 | I64: 104 | J64: 16.55779466 | K64: 0.1655779466 | L64: 12735.45428 | M64: 2108.710369
A65: Bargizmo, 3 brugsår | B65: 6.313889307 | C65: 88.00542946 | D65: 911.9945705 | E65: 78.29411163 | F65: 46.78889017 | G65: 467.8889017 | H65: 75.49759679 | I65: 105.3333333 | J65: 15.48782573 | K65: 0.1548782573 | L65: 13015.08405 | M65: 2015.753537
A66: Borsato, 3 brugsår | B66: 6.189629262 | C66: 85.84608105 | D66: 914.1539189 | E66: 76.88321919 | F66: 47.90513172 | G66: 479.0513172 | H66: 73.26969269 | I66: 106 | J66: 14.8826606 | K66: 0.148826606 | L66: 13360.39632 | M66: 1988.382439
A67: Briant, 3 brugsår | B67: 6.29273733 | C67: 88.88946543 | D67: 911.1105346 | E67: 78.25779713 | F67: 46.59636892 | G67: 465.9636892 | H67: 75.25607787 | I67: 108 | J67: 15.94899987 | K67: 0.1594899987 | L67: 13389.4354 | M67: 2135.481035
A68: Cangou, 3 brugsår | B68: 6.223793266 | C68: 85.25755797 | D68: 914.742442 | E68: 77.38471456 | F68: 47.44622293 | G68: 474.4622293 | H68: 74.12446573 | I68: 102.6666667 | J68: 14.92019334 | K68: 0.1492019334 | L68: 12869.22566 | M68: 1920.11335
A69: Carraig, 3 brugsår | B69: 6.143796445 | C69: 84.08857804 | D69: 915.911422 | E69: 76.75480356 | F69: 47.16231661 | G69: 471.6231661 | H69: 72.46512502 | I69: 92.66666667 | J69: 14.6698564 | K69: 0.146698564 | L69: 11766.97513 | M69: 1726.198355
A70: Diwan, 3 brugsår | B70: 6.243698902 | C70: 83.01722711 | D70: 916.9827729 | E70: 77.15807956 | F70: 47.17997907 | G70: 471.7997907 | H70: 73.17363127 | I70: 101.6666667 | J70: 15.42329316 | K70: 0.1542329316 | L70: 12703.2471 | M70: 1959.259042
A71: DLF LFT-4725, 3 brugsår | B71: 6.254848808 | C71: 87.94937468 | D71: 912.0506253 | E71: 77.81413929 | F71: 46.59722049 | G71: 465.9722049 | H71: 74.45128126 | I71: 110.6666667 | J71: 15.94747387 | K71: 0.1594747387 | L71: 13803.14739 | M71: 2201.253323
A72: Dunluce, 3 brugsår | B72: 6.352773022 | C72: 87.38556961 | D72: 912.6144304 | E72: 79.32953819 | F72: 44.84430341 | G72: 448.4430341 | H72: 76.42249834 | I72: 111 | J72: 15.54778946 | K72: 0.1554778946 | L72: 13631.31497 | M72: 2119.368153
A73: Ecrin, 3 brugsår | B73: 6.326414803 | C73: 88.6347122 | D73: 911.3652878 | E73: 78.68809627 | F73: 46.57661748 | G73: 465.7661748 | H73: 76.04043799 | I73: 101 | J73: 15.6165849 | K73: 0.156165849 | L73: 12454.94525 | M73: 1945.037099
A74: Fabiola, 3 brugsår | B74: 6.212718506 | C74: 86.98025615 | D74: 913.0197439 | E74: 77.17695867 | F74: 47.81199669 | G74: 478.1199669 | H74: 74.14464085 | I74: 103.6666667 | J74: 15.14527078 | K74: 0.1514527078 | L74: 13017.73932 | M74: 1971.571869
A75: Garbor, 3 brugsår | B75: 6.371026116 | C75: 85.90370234 | D75: 914.0962977 | E75: 79.26985615 | F75: 45.21553674 | G75: 452.1553674 | H75: 76.62096168 | I75: 98.66666667 | J75: 14.881023 | K75: 0.14881023 | L75: 12082.0098 | M75: 1797.926657
A76: Gerrison, 3 brugsår | B76: 6.262794442 | C76: 86.85301584 | D76: 913.1469842 | E76: 77.51569985 | F76: 46.50405817 | G76: 465.0405817 | H76: 73.58558447 | I76: 97.66666667 | J76: 16.60183766 | K76: 0.1660183766 | L76: 12166.23836 | M76: 2019.819142
A77: Kubus, 3 brugsår | B77: 6.236642001 | C77: 87.68761506 | D77: 912.3123849 | E77: 77.5090058 | F77: 46.49022083 | G77: 464.9022083 | H77: 73.85729618 | I77: 92 | J77: 15.69975091 | K77: 0.1569975091 | L77: 11508.40468 | M77: 1806.790868
A78: Makura, 3 brugsår | B78: 6.240261689 | C78: 89.52500268 | D78: 910.4749973 | E78: 77.75990553 | F78: 47.55455994 | G78: 475.5455994 | H78: 74.93297304 | I78: 98 | J78: 14.72927614 | K78: 0.1472927614 | L78: 12251.84196 | M78: 1804.607635
A79: Massimo, 3 brugsår | B79: 6.206334895 | C79: 82.93028955 | D79: 917.0697104 | E79: 76.99385132 | F79: 47.14436665 | G79: 471.4436665 | H79: 72.82131093 | I79: 93 | J79: 15.28720195 | K79: 0.1528720195 | L79: 11690.30534 | M79: 1787.120587
A80: Matenga, 3 brugsår | B80: 6.180411036 | C80: 87.41188132 | D80: 912.5881187 | E80: 76.77039168 | F80: 47.55203771 | G80: 475.5203771 | H80: 72.88138599 | I80: 93.66666667 | J80: 15.74628647 | K80: 0.1574628647 | L80: 11823.49355 | M80: 1861.761165
A81: Maurizio, 3 brugsår | B81: 6.207464732 | C81: 86.06027664 | D81: 913.9397234 | E81: 76.82911954 | F81: 47.71197707 | G81: 477.1197707 | H81: 73.07365441 | I81: 97.33333333 | J81: 15.50269605 | K81: 0.1550269605 | L81: 12232.78799 | M81: 1896.41194
A82: Mercedes, 3 brugsår | B82: 6.253320812 | C82: 86.6502941 | D82: 913.3497059 | E82: 77.80131458 | F82: 46.62554201 | G82: 466.2554201 | H82: 74.18283242 | I82: 92.66666667 | J82: 15.78479294 | K82: 0.1578479294 | L82: 11560.88136 | M82: 1824.861185
A83: Mischa, 3 brugsår | B83: 6.154141164 | C83: 86.37683759 | D83: 913.6231624 | E83: 76.56551947 | F83: 47.94597801 | G83: 479.4597801 | H83: 72.69286354 | I83: 91 | J83: 15.75898652 | K83: 0.1575898652 | L83: 11535.9151 | M83: 1817.943306
A84: Nabesna, 3 brugsår | B84: 6.2366355 | C84: 82.06239088 | D84: 917.9376091 | E84: 77.30414673 | F84: 45.86328562 | G84: 458.6328562 | H84: 72.69252178 | I84: 93 | J84: 16.26654503 | K84: 0.1626654503 | L84: 11633.50816 | M84: 1892.369844
A85: Novello, 3 brugsår | B85: 6.324499644 | C85: 89.69701943 | D85: 910.3029806 | E85: 78.70386985 | F85: 45.40724583 | G85: 454.0724583 | H85: 75.52206402 | I85: 101 | J85: 16.12438696 | K85: 0.1612438696 | L85: 12458.71681 | M85: 2008.891708
A86: Ovambo, 3 brugsår | B86: 6.220665125 | C86: 89.44721397 | D86: 910.552786 | E86: 77.31077886 | F86: 47.135206 | G86: 471.35206 | H86: 73.93949967 | I86: 106.3333333 | J86: 15.63564268 | K86: 0.1563564268 | L86: 13335.54344 | M86: 2085.097922
A87: Praetorian, 3 brugsår | B87: 6.107727515 | C87: 86.37676425 | D87: 913.6232357 | E87: 75.82796426 | F87: 48.79725449 | G87: 487.9725449 | H87: 71.69161794 | I87: 93.66666667 | J87: 15.85783404 | K87: 0.1585783404 | L87: 11964.19615 | M87: 1897.262369
A88: Solomon, 3 brugsår | B88: 6.140500045 | C88: 86.22433983 | D88: 913.7756602 | E88: 76.42354948 | F88: 47.73653847 | G88: 477.3653847 | H88: 72.40689159 | I88: 94 | J88: 15.27648349 | K88: 0.1527648349 | L88: 11942.69187 | M88: 1824.423352
A89: Tiponi, 3 brugsår | B89: 6.175257223 | C89: 86.58557062 | D89: 913.4144294 | E89: 76.66563145 | F89: 47.32637449 | G89: 473.2637449 | H89: 72.43847312 | I89: 91 | J89: 16.05987606 | K89: 0.1605987606 | L89: 11496.46848 | M89: 1846.318589
A90: Torgal, 3 brugsår | B90: 6.233672933 | C90: 85.50557213 | D90: 914.4944279 | E90: 77.41321195 | F90: 47.01570021 | G90: 470.1570021 | H90: 73.82123118 | I90: 93 | J90: 15.53853434 | K90: 0.1553853434 | L90: 11639.03701 | M90: 1808.535764
A91: Tribal, 3 brugsår | B91: 6.391355276 | C91: 86.27518076 | D91: 913.7248192 | E91: 79.2925696 | F91: 44.78250572 | G91: 447.8250572 | H91: 76.58198847 | I91: 94 | J91: 15.45868962 | K91: 0.1545868962 | L91: 11473.95143 | M91: 1773.722538
A92: Vifelt, 3 brugsår | B92: 6.268554095 | C92: 88.68462714 | D92: 911.3153729 | E92: 77.69353065 | F92: 46.59592181 | G92: 465.9592181 | H92: 74.35657624 | I92: 107.3333333 | J92: 16.1807547 | K92: 0.161807547 | L92: 13358.12035 | M92: 2161.444686
A93: Youpi, 3 brugsår | B93: 6.392095809 | C93: 85.47532055 | D93: 914.5246795 | E93: 79.77334042 | F93: 44.12124205 | G93: 441.2124205 | H93: 76.76427325 | I93: 94.66666667 | J93: 15.21569728 | K93: 0.1521569728 | L93: 11553.98827 | M93: 1758.019879
D94: 1000 | F94: =G94/10 -> 0 | J94: 0 | L94: =mj_fe*fe_ha/B94*I94/$I$2 ->  | M94: =L94*K94 -> 
A95: AberChoice, 2 brugsår | B95: 6.314005672 | C95: 84.39731177 | D95: =1000-C95 -> 915.6026882 | E95: 78.69546114 | F95: =G95/10 -> 44.63002958 | G95: 446.3002958 | H95: 74.81966014 | I95: 99 | J95: =K95*100 -> 15.82064729 | K95: 0.1582064729 | L95: =mj_fe*fe_ha/B95*I95/$I$2 -> 12232.30608 | M95: =L95*K95 -> 1935.230001
A96: Alcander, 2 brugsår | B96: 6.281612456 | C96: 88.87434078 | D96: 911.1256592 | E96: 78.56010976 | F96: 44.95687256 | G96: 449.5687256 | H96: 74.93616571 | I96: 100 | J96: 15.3530439 | K96: 0.153530439 | L96: 12419.58184 | M96: 1906.783852
A97: Barflip, 2 brugsår | B97: 6.38141109 | C97: 84.85154131 | D97: 915.1484587 | E97: 78.93550222 | F97: 46.67390399 | G97: 466.7390399 | H97: 76.59492205 | I97: 103.5 | J97: 15.15051886 | K97: 0.1515051886 | L97: 12653.23983 | M97: 1917.031487
A98: Barganza, 2 brugsår | B98: 6.293254826 | C98: 90.11469116 | D98: 909.8853088 | E98: 78.25064634 | F98: 46.41370438 | G98: 464.1370438 | H98: 75.22812134 | I98: 105 | J98: 15.91290736 | K98: 0.1591290736 | L98: 13016.43621 | M98: 2071.293436
A99: Barhoney, 2 brugsår | B99: 6.346071126 | C99: 87.29015453 | D99: 912.7098455 | E99: 78.65017501 | F99: 46.759215 | G99: 467.59215 | H99: 76.0789372 | I99: 100.5 | J99: 15.38069051 | K99: 0.1538069051 | L99: 12354.90013 | M99: 1900.268952
A100: Barimero, 2 brugsår | B100: 6.197583818 | C100: 89.26166658 | D100: 910.7383334 | E100: 77.17083224 | F100: 47.2860495 | G100: 472.860495 | H100: 73.47296558 | I100: 102 | J100: 15.95551622 | K100: 0.1595551622 | L100: 12839.72954 | M100: 2048.645128
A101: Barpasto, 2 brugsår | B101: 6.283684934 | C101: 89.0886283 | D101: 910.9113717 | E101: 78.29039261 | F101: 45.82596256 | G101: 458.2596256 | H101: 75.0921512 | I101: 95.5 | J101: 15.58672745 | K101: 0.1558672745 | L101: 11856.78878 | M101: 1848.085351
A102: Bovini, 2 brugsår | B102: 6.125483945 | C102: 88.79656167 | D102: 911.2034383 | E102: 76.21910968 | F102: 48.52666236 | G102: 485.2666236 | H102: 72.46483209 | I102: 105.5 | J102: 15.64792545 | K102: 0.1564792545 | L102: 13436.62407 | M102: 2102.552917
A103: Direct, 2 brugsår | B103: 6.235860794 | C103: 90.86798107 | D103: 909.1320189 | E103: 77.42355546 | F103: 46.54934091 | G103: 465.4934091 | H103: 73.77084546 | I103: 95.5 | J103: 16.59090716 | K103: 0.1659090716 | L103: 11947.72101 | M103: 1982.2353
A104: Dromara, 2 brugsår | B104: 6.324492138 | C104: 86.04094874 | D104: 913.9590513 | E104: 78.81063373 | F104: 45.25679771 | G104: 452.5679771 | H104: 75.25871501 | I104: 105.5 | J104: 15.43555706 | K104: 0.1543555706 | L104: 13013.82359 | M104: 2008.756166
A105: Ensilvio, 2 brugsår | B105: 6.173208236 | C105: 93.21573248 | D105: 906.7842675 | E105: 76.70065373 | F105: 48.79380317 | G105: 487.9380317 | H105: 73.93159188 | I105: 104.5 | J105: 15.77569313 | K105: 0.1577569313 | L105: 13206.37048 | M105: 2083.396481
A106: Estrada, 2 brugsår | B106: 6.29750288 | C106: 91.31356206 | D106: 908.6864379 | E106: 78.38538938 | F106: 45.96210758 | G106: 459.6210758 | H106: 75.27686774 | I106: 96 | J106: 15.81040152 | K106: 0.1581040152 | L106: 11892.71389 | M106: 1880.285818
A107: Everton, 2 brugsår | B107: 6.296753302 | C107: 89.58190645 | D107: 910.4180936 | E107: 78.13276241 | F107: 46.27859307 | G107: 462.7859307 | H107: 74.91558059 | I107: 99 | J107: 16.41849658 | K107: 0.1641849658 | L107: 12265.82118 | M107: 2013.86343
A108: Humbi 1, 2 brugsår | B108: 6.214904501 | C108: 90.26760282 | D108: 909.7323972 | E108: 77.52067482 | F108: 47.48586373 | G108: 474.8586373 | H108: 74.42812563 | I108: 103.5 | J108: 14.70049715 | K108: 0.1470049715 | L108: 12992.23906 | M108: 1909.923733
A109: Irondal, 2 brugsår | B109: 6.328142817 | C109: 89.51967895 | D109: 910.4803211 | E109: 78.80389042 | F109: 45.53613335 | G109: 455.3613335 | H109: 75.86703534 | I109: 96.5 | J109: 15.65220064 | K109: 0.1565220064 | L109: 11896.77243 | M109: 1862.106691
A110: Kintyre, 2 brugsår | B110: 6.221260863 | C110: 86.58482568 | D110: 913.4151743 | E110: 77.66599228 | F110: 46.20811568 | G110: 462.0811568 | H110: 73.57923296 | I110: 98.5 | J110: 15.40368953 | K110: 0.1540368953 | L110: 12351.96156 | M110: 1902.657808
A111: Lassik, 2 brugsår | B111: 6.177253474 | C111: 86.53622772 | D111: 913.4637723 | E111: 77.07058285 | F111: 46.74097834 | G111: 467.4097834 | H111: 72.92275247 | I111: 101.5 | J111: 15.18238635 | K111: 0.1518238635 | L111: 12818.84017 | M111: 1946.205841
A112: Malambo, 2 brugsår | B112: 6.229912771 | C112: 87.85901198 | D112: 912.140988 | E112: 77.60646473 | F112: 46.65835786 | G112: 466.5835786 | H112: 73.62241827 | I112: 96.5 | J112: 16.2608075 | K112: 0.162608075 | L112: 12084.35459 | M112: 1965.013637
A113: Marniere, 2 brugsår | B113: 6.376882803 | C113: 85.07756409 | D113: 914.9224359 | E113: 79.1147667 | F113: 45.09122208 | G113: 450.9122208 | H113: 76.41124161 | I113: 98.5 | J113: 14.99712327 | K113: 0.1499712327 | L113: 12050.52333 | M113: 1807.231839
A114: Masai, 2 brugsår | B114: 6.283547873 | C114: 90.17707538 | D114: 909.8229246 | E114: 78.02837025 | F114: 46.49817983 | G114: 464.9817983 | H114: 74.98512321 | I114: 103 | J114: 15.91687392 | K114: 0.1591687392 | L114: 12788.22914 | M114: 2035.486309
A115: Melboldt, 2 brugsår | B115: 6.336512333 | C115: 89.36638877 | D115: 910.6336112 | E115: 78.73416134 | F115: 45.30210601 | G115: 453.0210601 | H115: 75.51923183 | I115: 98.5 | J115: 16.60057197 | K115: 0.1660057197 | L115: 12127.29826 | M115: 2013.200875
A116: Nashota, 2 brugsår | B116: 6.380433313 | C116: 89.69700169 | D116: 910.3029983 | E116: 79.62458189 | F116: 44.52238493 | G116: 445.2238493 | H116: 77.30706863 | I116: 103.5 | J116: 14.95255825 | K116: 0.1495255825 | L116: 12655.1789 | M116: 1892.272996
A117: Quadriga, 2 brugsår | B117: 6.291940799 | C117: 91.5169642 | D117: 908.4830358 | E117: 78.32222902 | F117: 46.02748579 | G117: 460.2748579 | H117: 75.45370446 | I117: 100 | J117: 15.79431615 | K117: 0.1579431615 | L117: 12399.19486 | M117: 1958.368036
A118: Redding, 2 brugsår | B118: 6.123646343 | C118: 91.50056882 | D118: 908.4994312 | E118: 76.19696961 | F118: 48.69037397 | G118: 486.9037397 | H118: 72.63992492 | I118: 100 | J118: 15.86741249 | K118: 0.1586741249 | L118: 12739.95846 | M118: 2021.501759
A119: Resista, 2 brugsår | B119: 6.226249206 | C119: 87.17517682 | D119: 912.8248232 | E119: 77.52074078 | F119: 47.13084366 | G119: 471.3084366 | H119: 73.98719401 | I119: 106 | J119: 15.26691048 | K119: 0.1526691048 | L119: 13281.81659 | M119: 2027.723049
A120: Rossera, 2 brugsår | B120: 6.292807876 | C120: 85.44425581 | D120: 914.5557442 | E120: 78.14557229 | F120: 45.99827633 | G120: 459.9827633 | H120: 74.65460158 | I120: 101 | J120: 15.30900389 | K120: 0.1530900389 | L120: 12521.46125 | M120: 1916.91099
A121: Saqui, 2 brugsår | B121: 6.295022567 | C121: 84.11130886 | D121: 915.8886911 | E121: 78.45098168 | F121: 45.82240099 | G121: 458.2240099 | H121: 74.98847673 | I121: 107.5 | J121: 14.75960111 | K121: 0.1475960111 | L121: 13322.60911 | M121: 1966.363962
A122: Scotia, 2 brugsår | B122: 6.274717564 | C122: 91.91115827 | D122: 908.0888417 | E122: 77.69317885 | F122: 47.86165634 | G122: 478.6165634 | H122: 75.32782449 | I122: 102.5 | J122: 16.11728267 | K122: 0.1611728267 | L122: 12744.05966 | M122: 2053.99612
A123: Sitala, 2 brugsår | B123: 6.148699145 | C123: 90.89795295 | D123: 909.102047 | E123: 76.4571501 | F123: 48.88342447 | G123: 488.8342447 | H123: 73.0507119 | I123: 103 | J123: 15.79254648 | K123: 0.1579254648 | L123: 13068.69113 | M123: 2063.879122
A124: Soyala, 2 brugsår | B124: 6.164179477 | C124: 92.35960015 | D124: 907.6403999 | E124: 76.81358239 | F124: 47.67196915 | G124: 476.7196915 | H124: 73.30295923 | I124: 100 | J124: 15.87073229 | K124: 0.1587073229 | L124: 12656.18568 | M124: 2008.629347
A125: Splendid, 2 brugsår | B125: 6.323512712 | C125: 85.43614689 | D125: 914.5638531 | E125: 78.56751357 | F125: 45.19466357 | G125: 451.9466357 | H125: 74.57487959 | I125: 96 | J125: 15.89106635 | K125: 0.1589106635 | L125: 11843.79686 | M125: 1882.105618
A126: Thegn, 2 brugsår | B126: 6.376339878 | C126: 85.9900433 | D126: 914.0099567 | E126: 79.18215786 | F126: 44.85479478 | G126: 448.5479478 | H126: 75.92963609 | I126: 103 | J126: 15.76357028 | K126: 0.1576357028 | L126: 12602.12779 | M126: 1986.545271
A127: Timing, 2 brugsår | B127: 6.21960962 | C127: 88.06005925 | D127: 911.9399408 | E127: 77.46240506 | F127: 47.13464531 | G127: 471.3464531 | H127: 73.97608424 | I127: 101.5 | J127: 15.13197363 | K127: 0.1513197363 | L127: 12731.54263 | M127: 1926.533673
A128: Toddington, 2 brugsår | B128: 6.205261259 | C128: 87.34143635 | D128: 912.6585636 | E128: 77.05306544 | F128: 47.08277939 | G128: 470.8277939 | H128: 73.22178802 | I128: 99 | J128: 15.49585399 | K128: 0.1549585399 | L128: 12446.67175 | M128: 1928.718081
A129: Valerio, 2 brugsår | B129: 6.300642134 | C129: 87.66629844 | D129: 912.3337016 | E129: 78.36604127 | F129: 45.6825625 | G129: 456.825625 | H129: 75.18600287 | I129: 99.5 | J129: 15.33140828 | K129: 0.1533140828 | L129: 12320.16092 | M129: 1888.854171
A130: Valmiron, 2 brugsår | B130: 6.20506182 | C130: 89.17680853 | D130: 910.8231915 | E130: 77.28260242 | F130: 47.75199928 | G130: 477.5199928 | H130: 73.81929978 | I130: 104.5 | J130: 15.21007643 | K130: 0.1521007643 | L130: 13138.57579 | M130: 1998.38742
A131: Virtuose, 2 brugsår | B131: 6.269953549 | C131: 89.61140369 | D131: 910.3885963 | E131: 78.06733153 | F131: 46.15341607 | G131: 461.5341607 | H131: 74.60919389 | I131: 101 | J131: 15.85908455 | K131: 0.1585908455 | L131: 12567.10267 | M131: 1993.027439
A132: Zenital, 2 brugsår | B132: 6.140507139 | C132: 87.27879049 | D132: 912.7212095 | E132: 76.3046326 | F132: 48.17243015 | G132: 481.7243015 | H132: 72.33230001 | I132: 96 | J132: 15.8662011 | K132: 0.158662011 | L132: 12196.77761 | M132: 1935.165263
D133: 1000 | J133: 0 | L133: =mj_fe*fe_ha/B133*I133/$I$2 ->  | M133: =L133*K133 -> 
A134: AberChoice, 3 brugsår | B134: 6.314005672 | C134: 84.39731177 | D134: =1000-C134 -> 915.6026882 | E134: 78.69546114 | F134: =G134/10 -> 44.63002958 | G134: 446.3002958 | H134: 74.81966014 | I134: 104 | J134: =K134*100 -> 15.82064729 | K134: 0.1582064729 | L134: =mj_fe*fe_ha/B134*I134/$I$2 -> 12850.09932 | M134: =L134*K134 -> 2032.96889
A135: Alcander, 3 brugsår | B135: 6.281612456 | C135: 88.87434078 | D135: 911.1256592 | E135: 78.56010976 | F135: 44.95687256 | G135: 449.5687256 | H135: 74.93616571 | I135: 100.6666667 | J135: 15.3530439 | K135: 0.153530439 | L135: 12502.37906 | M135: 1919.495745
A136: Barflip, 3 brugsår | B136: 6.38141109 | C136: 84.85154131 | D136: 915.1484587 | E136: 78.93550222 | F136: 46.67390399 | G136: 466.7390399 | H136: 76.59492205 | I136: 108.3333333 | J136: 15.15051886 | K136: 0.1515051886 | L136: 13244.13187 | M136: 2006.554697
A137: Barganza, 3 brugsår | B137: 6.293254826 | C137: 90.11469116 | D137: 909.8853088 | E137: 78.25064634 | F137: 46.41370438 | G137: 464.1370438 | H137: 75.22812134 | I137: 104.6666667 | J137: 15.91290736 | K137: 0.1591290736 | L137: 12975.11419 | M137: 2064.717902
A138: Barhoney, 3 brugsår | B138: 6.346071126 | C138: 87.29015453 | D138: 912.7098455 | E138: 78.65017501 | F138: 46.759215 | G138: 467.59215 | H138: 76.0789372 | I138: 100.3333333 | J138: 15.38069051 | K138: 0.1538069051 | L138: 12334.41108 | M138: 1897.117594
A139: Barimero, 3 brugsår | B139: 6.197583818 | C139: 89.26166658 | D139: 910.7383334 | E139: 77.17083224 | F139: 47.2860495 | G139: 472.860495 | H139: 73.47296558 | I139: 103.6666667 | J139: 15.95551622 | K139: 0.1595551622 | L139: 13049.52904 | M139: 2082.119722
A140: Barpasto, 3 brugsår | B140: 6.283684934 | C140: 89.0886283 | D140: 910.9113717 | E140: 78.29039261 | F140: 45.82596256 | G140: 458.2596256 | H140: 75.0921512 | I140: 96.33333333 | J140: 15.58672745 | K140: 0.1558672745 | L140: 11960.25116 | M140: 1864.211751
A141: Bovini, 3 brugsår | B141: 6.125483945 | C141: 88.79656167 | D141: 911.2034383 | E141: 76.21910968 | F141: 48.52666236 | G141: 485.2666236 | H141: 72.46483209 | I141: 108.6666667 | J141: 15.64792545 | K141: 0.1564792545 | L141: 13839.93506 | M141: 2165.66272
A142: Direct, 3 brugsår | B142: 6.235860794 | C142: 90.86798107 | D142: 909.1320189 | E142: 77.42355546 | F142: 46.54934091 | G142: 465.4934091 | H142: 73.77084546 | I142: 100.3333333 | J142: 16.59090716 | K142: 0.1659090716 | L142: 12552.40497 | M142: 2082.557854
A143: Dromara, 3 brugsår | B143: 6.324492138 | C143: 86.04094874 | D143: 913.9590513 | E143: 78.81063373 | F143: 45.25679771 | G143: 452.5679771 | H143: 75.25871501 | I143: 108.6666667 | J143: 15.43555706 | K143: 0.1543555706 | L143: 13404.44389 | M143: 2069.050585
A144: Ensilvio, 3 brugsår | B144: 6.173208236 | C144: 93.21573248 | D144: 906.7842675 | E144: 76.70065373 | F144: 48.79380317 | G144: 487.9380317 | H144: 73.93159188 | I144: 105.6666667 | J144: 15.77569313 | K144: 0.1577569313 | L144: 13353.81002 | M144: 2106.65609
A145: Estrada, 3 brugsår | B145: 6.29750288 | C145: 91.31356206 | D145: 908.6864379 | E145: 78.38538938 | F145: 45.96210758 | G145: 459.6210758 | H145: 75.27686774 | I145: 95 | J145: 15.81040152 | K145: 0.1581040152 | L145: 11768.83146 | M145: 1860.699508
A146: Everton, 3 brugsår | B146: 6.296753302 | C146: 89.58190645 | D146: 910.4180936 | E146: 78.13276241 | F146: 46.27859307 | G146: 462.7859307 | H146: 74.91558059 | I146: 100 | J146: 16.41849658 | K146: 0.1641849658 | L146: 12389.71836 | M146: 2034.205485
A147: Humbi 1, 3 brugsår | B147: 6.214904501 | C147: 90.26760282 | D147: 909.7323972 | E147: 77.52067482 | F147: 47.48586373 | G147: 474.8586373 | H147: 74.42812563 | I147: 107.3333333 | J147: 14.70049715 | K147: 0.1470049715 | L147: 13473.4331 | M147: 1980.661649
A148: Irondal, 3 brugsår | B148: 6.328142817 | C148: 89.51967895 | D148: 910.4803211 | E148: 78.80389042 | F148: 45.53613335 | G148: 455.3613335 | H148: 75.86703534 | I148: 97 | J148: 15.65220064 | K148: 0.1565220064 | L148: 11958.41374 | M148: 1871.754912
A149: Kintyre, 3 brugsår | B149: 6.221260863 | C149: 86.58482568 | D149: 913.4151743 | E149: 77.66599228 | F149: 46.20811568 | G149: 462.0811568 | H149: 73.57923296 | I149: 99 | J149: 15.40368953 | K149: 0.1540368953 | L149: 12414.66187 | M149: 1912.31597
A150: Lassik, 3 brugsår | B150: 6.177253474 | C150: 86.53622772 | D150: 913.4637723 | E150: 77.07058285 | F150: 46.74097834 | G150: 467.4097834 | H150: 72.92275247 | I150: 100.3333333 | J150: 15.18238635 | K150: 0.1518238635 | L150: 12671.49718 | M150: 1923.835659
A151: Malambo, 3 brugsår | B151: 6.229912771 | C151: 87.85901198 | D151: 912.140988 | E151: 77.60646473 | F151: 46.65835786 | G151: 466.5835786 | H151: 73.62241827 | I151: 102 | J151: 16.2608075 | K151: 0.162608075 | L151: 12773.10019 | M151: 2077.009233
A152: Marniere, 3 brugsår | B152: 6.376882803 | C152: 85.07756409 | D152: 914.9224359 | E152: 79.1147667 | F152: 45.09122208 | G152: 450.9122208 | H152: 76.41124161 | I152: 98.66666667 | J152: 14.99712327 | K152: 0.1499712327 | L152: 12070.91339 | M152: 1810.289761
A153: Masai, 3 brugsår | B153: 6.283547873 | C153: 90.17707538 | D153: 909.8229246 | E153: 78.02837025 | F153: 46.49817983 | G153: 464.9817983 | H153: 74.98512321 | I153: 107.3333333 | J153: 15.91687392 | K153: 0.1591687392 | L153: 13326.24525 | M153: 2121.121655
A154: Melboldt, 3 brugsår | B154: 6.336512333 | C154: 89.36638877 | D154: 910.6336112 | E154: 78.73416134 | F154: 45.30210601 | G154: 453.0210601 | H154: 75.51923183 | I154: 99 | J154: 16.60057197 | K154: 0.1660057197 | L154: 12188.85815 | M154: 2023.420169
A155: Nashota, 3 brugsår | B155: 6.380433313 | C155: 89.69700169 | D155: 910.3029983 | E155: 79.62458189 | F155: 44.52238493 | G155: 445.2238493 | H155: 77.30706863 | I155: 105 | J155: 14.95255825 | K155: 0.1495255825 | L155: 12838.58728 | M155: 1919.697243
A156: Quadriga, 3 brugsår | B156: 6.291940799 | C156: 91.5169642 | D156: 908.4830358 | E156: 78.32222902 | F156: 46.02748579 | G156: 460.2748579 | H156: 75.45370446 | I156: 100 | J156: 15.79431615 | K156: 0.1579431615 | L156: 12399.19486 | M156: 1958.368036
A157: Redding, 3 brugsår | B157: 6.123646343 | C157: 91.50056882 | D157: 908.4994312 | E157: 76.19696961 | F157: 48.69037397 | G157: 486.9037397 | H157: 72.63992492 | I157: 101.6666667 | J157: 15.86741249 | K157: 0.1586741249 | L157: 12952.2911 | M157: 2055.193455
A158: Resista, 3 brugsår | B158: 6.226249206 | C158: 87.17517682 | D158: 912.8248232 | E158: 77.52074078 | F158: 47.13084366 | G158: 471.3084366 | H158: 73.98719401 | I158: 109.3333333 | J158: 15.26691048 | K158: 0.1526691048 | L158: 13699.48378 | M158: 2091.487925
A159: Rossera, 3 brugsår | B159: 6.292807876 | C159: 85.44425581 | D159: 914.5557442 | E159: 78.14557229 | F159: 45.99827633 | G159: 459.9827633 | H159: 74.65460158 | I159: 103.3333333 | J159: 15.30900389 | K159: 0.1530900389 | L159: 12810.73594 | M159: 1961.196062
A160: Saqui, 3 brugsår | B160: 6.295022567 | C160: 84.11130886 | D160: 915.8886911 | E160: 78.45098168 | F160: 45.82240099 | G160: 458.2240099 | H160: 74.98847673 | I160: 112 | J160: 14.75960111 | K160: 0.1475960111 | L160: 13880.29972 | M160: 2048.676872
A161: Scotia, 3 brugsår | B161: 6.274717564 | C161: 91.91115827 | D161: 908.0888417 | E161: 77.69317885 | F161: 47.86165634 | G161: 478.6165634 | H161: 75.32782449 | I161: 104.3333333 | J161: 16.11728267 | K161: 0.1611728267 | L161: 12972.00219 | M161: 2090.734262
A162: Sitala, 3 brugsår | B162: 6.148699145 | C162: 90.89795295 | D162: 909.102047 | E162: 76.4571501 | F162: 48.88342447 | G162: 488.8342447 | H162: 73.0507119 | I162: 104.6666667 | J162: 15.79254648 | K162: 0.1579254648 | L162: 13280.15863 | M162: 2097.275224
A163: Soyala, 3 brugsår | B163: 6.164179477 | C163: 92.35960015 | D163: 907.6403999 | E163: 76.81358239 | F163: 47.67196915 | G163: 476.7196915 | H163: 73.30295923 | I163: 100 | J163: 15.87073229 | K163: 0.1587073229 | L163: 12656.18568 | M163: 2008.629347
A164: Splendid, 3 brugsår | B164: 6.323512712 | C164: 85.43614689 | D164: 914.5638531 | E164: 78.56751357 | F164: 45.19466357 | G164: 451.9466357 | H164: 74.57487959 | I164: 96.66666667 | J164: 15.89106635 | K164: 0.1589106635 | L164: 11926.04545 | M164: 1895.175796
A165: Thegn, 3 brugsår | B165: 6.376339878 | C165: 85.9900433 | D165: 914.0099567 | E165: 79.18215786 | F165: 44.85479478 | G165: 448.5479478 | H165: 75.92963609 | I165: 103.6666667 | J165: 15.76357028 | K165: 0.1576357028 | L165: 12683.69496 | M165: 1999.40317
A166: Timing, 3 brugsår | B166: 6.21960962 | C166: 88.06005925 | D166: 911.9399408 | E166: 77.46240506 | F166: 47.13464531 | G166: 471.3464531 | H166: 73.97608424 | I166: 103.3333333 | J166: 15.13197363 | K166: 0.1513197363 | L166: 12961.50481 | M166: 1961.33149
A167: Toddington, 3 brugsår | B167: 6.205261259 | C167: 87.34143635 | D167: 912.6585636 | E167: 77.05306544 | F167: 47.08277939 | G167: 470.8277939 | H167: 73.22178802 | I167: 101.6666667 | J167: 15.49585399 | K167: 0.1549585399 | L167: 12781.93563 | M167: 1980.670083
A168: Valerio, 3 brugsår | B168: 6.300642134 | C168: 87.66629844 | D168: 912.3337016 | E168: 78.36604127 | F168: 45.6825625 | G168: 456.825625 | H168: 75.18600287 | I168: 101.6666667 | J168: 15.33140828 | K168: 0.1533140828 | L168: 12588.43913 | M168: 1929.984999
A169: Valmiron, 3 brugsår | B169: 6.20506182 | C169: 89.17680853 | D169: 910.8231915 | E169: 77.28260242 | F169: 47.75199928 | G169: 477.5199928 | H169: 73.81929978 | I169: 109 | J169: 15.21007643 | K169: 0.1521007643 | L169: 13704.35178 | M169: 2084.442381
A170: Virtuose, 3 brugsår | B170: 6.269953549 | C170: 89.61140369 | D170: 910.3885963 | E170: 78.06733153 | F170: 46.15341607 | G170: 461.5341607 | H170: 74.60919389 | I170: 102.6666667 | J170: 15.85908455 | K170: 0.1585908455 | L170: 12774.4806 | M170: 2025.91568
A171: Zenital, 3 brugsår | B171: 6.140507139 | C171: 87.27879049 | D171: 912.7212095 | E171: 76.3046326 | F171: 48.17243015 | G171: 481.7243015 | H171: 72.33230001 | I171: 98.66666667 | J171: 15.8662011 | K171: 0.158662011 | L171: 12535.57699 | M171: 1988.919854
D172: =1000-C172 -> 1000 | F172: =G172/10 -> 0 | J172: =K172*100 -> 0 | L172: =mj_fe*fe_ha/B172*I172/$I$2 ->  | M172: =L172*K172 -> 
A173: Egen sort 3 | K173: =J173/100 -> 0 | L173: =mj_fe*fe_ha/B173*I173/$I$2 ->  | M173: =L173*K173 -> 
A174: Egen sort 4 | K174: =J174/100 -> 0
A175: Egen sort 5 | K175: =J175/100 -> 0

Sheet NorFor, stand. + konst. (hidden)
A1: NorFor standarder og konstanter
B2: Værdi | C2: Enhed | D2: Beskrivelse | E2: Forkortelse | F2: Oprindelse
A3: Beregning af fyldekapacitet | B3: 380 | C3: Kg | D3: Vægt af Jersey ko, 1. kalv | E3: BW_cur | F3: NorFor
B4: 430 | C4: Kg | D4: Vægt af Jersey ko, øvrige | E4: BW_cur | F4: NorFor
B5: 440 | D5: Vægt af Jersey ko, exp | E5: BW_exp | F5: NorFor
B6: 550 | C6: Kg | D6: Vægt af tung race ko, 1. kalv | E6: BW_cur | F6: NorFor
B7: 620 | C7: Kg | D7: Vægt af tung race ko, øvrige | E7: BW_cur | F7: NorFor
B8: 640 | D8: Vægt af tung race ko, exp | E8: BW_exp | F8: NorFor
B9: 120 | C9: Dage | D9: Days in milk, gennemsnitsko | E9: DIM | F9: Antaget
B10: 335 | C10: Dage | D10: Laktationslængde | E10: Lak_dage | F10: Antaget
B11: 0 | C11: - | D11: Værdi hvis bindestald | E11: ICL_exercise | F11: NorFor
B12: 0.15 | C12: - | D12: Værdi hvis løsdrift | E12: ICL_exercise | F12: NorFor
B13: -0.0004 | C13: - | D13: Beregning, ICL, Jersey | E13: factor_4 | F13: NorFor
B14: -0.0006 | C14: - | D14: Beregning, ICL, Tung | E14: factor_4 | F14: NorFor
B15: 360 | C15: - | D15: Beregning, ICL, Jersey, primi | E15: factor_5 | F15: NorFor
B16: 405 | C16: - | D16: Beregning, ICL, Jersey, multi | E16: factor_5 | F16: NorFor
B17: 500 | C17: - | D17: Beregning, ICL, Tung, primi | E17: factor_5 | F17: NorFor
B18: 575 | C18: - | D18: Beregning, ICL, Tung, multi | E18: factor_5 | F18: NorFor
B19: 2.25 | C19: - | D19: Beregning, ICL, Jersey, primi | E19: factor_8 | F19: NorFor
B20: 2.4 | C20: - | D20: Beregning, ICL, Jersey, multi | E20: factor_8 | F20: NorFor
B21: 2.59 | C21: - | D21: Beregning, ICL, Tung, primi | E21: factor_8 | F21: NorFor
B22: 2.82 | C22: - | D22: Beregning, ICL, Tung, multi | E22: factor_8 | F22: NorFor
B23: 0.25 | C23: - | D23: Beregning, ICL, Jersey, primi | E23: factor_9 | F23: NorFor
B24: 0.15 | C24: - | D24: Beregning, ICL, Jersey, multi | E24: factor_9 | F24: NorFor
B25: 0.55 | C25: - | D25: Beregning, ICL, Tung | E25: factor_9 | F25: NorFor
B26: 0.11 | C26: - | D26: Beregning, ICL, Jersey | E26: factor_10 | F26: NorFor
B27: 0.091 | C27: - | D27: Beregning, ICL, Tung | E27: factor_10 | F27: NorFor
B28: 0.35 | C28: Andel | D28: 1. kalvs køer, andel af besætning | E28: 1_kalv_andel | F28: Antaget
B29: 0.65 | C29: Andel | D29: Øvrige køer, andel af besætning | E29: øvrige_andel | F29: Antaget
A30: Energibehov | B30: 0.29256 | C30: - | D30: Beregning af NEL_maint | E30: factor_1 | F30: NorFor
B31: 1 | C31: - | D31: Beregning af NEL_maint, tied up | E31: NEL_exercise_tied | F31: NorFor
B32: 1.1 | C32: - | D32: Beregning af NEL_maint, loose | E32: NEL_exercise_loose | F32: NorFor
B33: 30 | C33: dage | D33: Beregning af dage_drægtig | E33: gest_day | F33: NorFor
B34: 0.11 | C34: kg / dag | D34: Daglig tilvækst i 1. laktation, Tung | E34: gain_P1 | F34: NorFor
B35: 3.14 | C35: MJ NEL / kg EKM | D35: Energi til produktion af 1 kg EKM | F35: NorFor
B36: 0.9 | C36: faktor | D36: Gns. Ydels * faktor = ydelse, 1. kl. | E36: faktor_1.kl | F36: Antaget
B37: 1.08 | C37: faktor | D37: Gns. Ydels * faktor = ydelse, øvrige | E37: faktor_øvrige | F37: Antaget
A38: Diverse | B38: 0.22 | C38: FVL / kg tørstof | D38: Fyldeværdien af kraftfoder | F38: NorFor
B39: 0.85 | C39: Andel | D39: Foderudnyttelse til ekstra produktion | F39: Antaget
B40: 0.25 | C40: Kg EKM / FK NDF | D40: Ekstra mælk ved + 1 FKNDF i majs | F40: Antaget
B41: 0.97 | D41: Bruges til beregning af fylde i grovf | E41: FVL_const | F41: Estimeret ud fra beregninger angivet i arket: "Test af effekt af FK NDF og reel fylde af ration"
B42: 7.43 | C42: MJ NEL / FEN | D42: Omregningsfaktor for udbytte | F42: Antaget
B43: =pris_urea/2.915 -> 1.372212693 | C43: Kr | D43: Prisen på suppleirngsprotein UREA | E43: Pris_Råprot | F43: Beregnet - se beskrivelse af hvordan - beregnet som værdi af urea
B44: 1 | D44: Hvor meget af protein i græs er det værd | E44: udnytprot | F44: udnyttelse af protein i græs - når anvendes urea så sæt til 1,00
B46: EKM-ydelse
A47: Skæring | B47: -405.07
A48: beta0 | B48: 11.4073
A49: beta1 | B49: -0.07427

Sheet Græssorter - Måleblandinger (hidden)
A1: Målesorter | B1: NEL20, MJ / kg TS | C1: Aske, g/kg TS | D1: Org. stof, g/kg TS | E1: FK OS, % | F1: NDF, % af TS | G1: NDF, g / kg TS | H1: FK NDF, % | I1: Udbytte, fht. NEL20 | J1: Råprotein, % af TS | K1: Råprotein, % af TS | L1: Kg TS | M1: Kg råprot pr ha
A2: Tidlig_2_brugsår | B2: 6.162640723 | C2: 85.49545514 | D2: =1000-C2 -> 914.5045449 | E2: 76.6179232 | F2: =G2/10 -> 47.64866734 | G2: 476.4866734 | H2: 72.55448548 | I2: 100 | J2: =K2*100 -> 15.70418941 | K2: 0.1570418941 | L2: 12660.35667 | M2: =L2*K2 -> 1988.206393
A3: Tidlig_3_brugsår | B3: 6.162640723 | C3: 85.49545514 | D3: =1000-C3 -> 914.5045449 | E3: 76.6179232 | F3: =G3/10 -> 47.64866734 | G3: 476.4866734 | H3: 72.55448548 | I3: 100 | J3: =K3*100 -> 15.70418941 | K3: 0.1570418941 | L3: 12660.35667 | M3: =L3*K3 -> 1988.206393
A4: Middeltidlig_2_brugsår | B4: 6.279805583 | C4: 86.18503636 | D4: 913.6982865 | E4: 77.99240814 | F4: =G4/10 -> 46.43768569 | G4: 464.3768569 | H4: 74.50805769 | I4: 100 | J4: =K4*100 -> 15.55758225 | K4: 0.1555758225 | L4: 12403.93739 | M4: =L4*K4 -> 1929.752762
A5: Middeltidlig_3_brugsår | B5: 6.279805583 | C5: 86.18503636 | D5: 913.6982865 | E5: 77.99240814 | F5: 46.43768569 | G5: 464.3768569 | H5: 74.50805769 | I5: 100 | J5: =K5*100 -> 15.55758225 | K5: 0.1555758225 | L5: 12403.93739 | M5: 1929.752762
A6: Sildig_2_brugsår | B6: 6.20737755 | C6: 86.87041765 | D6: =1000-C6 -> 913.1295824 | E6: 77.28321288 | F6: 46.89415074 | G6: 468.9415074 | H6: 73.43136399 | I6: 100 | J6: 15.63399405 | K6: 0.1563399405 | L6: 12458.19445 | M6: 1947.713379
A7: Sildig_3_brugsår | B7: 6.20737755 | C7: 86.87041765 | D7: 913.1295824 | E7: 77.28321288 | F7: 46.89415074 | G7: 468.9415074 | H7: 73.43136399 | I7: 100 | J7: 15.63399405 | K7: 0.1563399405 | L7: 12458.19445 | M7: 1947.713379
